{"text_format":"1","workbook":"xlsx","n_sheets":21,"sheets":["Cover Page","Facility Info","Operational Data","Operational Summary","Perf. Form 1","Energy Form 1","Permit Compliance","Improvements","Public Liasion","CO2 N2O","Residues","Water","Air (periodic)","Air (CEMS)","HCl","SO2","NOx","TOC","Particulates","CO 95% 10 min","NH3"],"not_rendered":{"charts":7,"images":4,"macros":1,"external_links":0,"defined_names":22,"comments":0,"pivot_tables":0},"unopened":[],"bounds":{"document_bytes":16777216,"sheet_cells":100000,"rows_first":2000,"rows_last":500,"rows_between":2000,"halvings":0,"cell_chars":16384,"cell_head_chars":4096},"cells_cut":0,"cells_raw":0,"read":"whole","date_system":"1900"}

{"sheet":"Cover Page","index":0,"n_rows":53,"n_cols":11,"rows_kept":53,"cut":false,"hidden":false,"merged":[[48,2,48,3],[48,6,48,8],[52,2,52,3],[36,1,36,8],[40,2,40,8],[42,2,42,4],[44,2,44,4],[46,2,46,3],[46,6,46,8],[13,10,18,12],[34,1,34,8],[0,3,5,6],[7,1,23,8],[28,1,28,8],[30,1,30,8],[32,1,32,8]]}
[]
[null,null,null,null,null,null,null,null,null,null,"Template version 25.1a (for incinerators) - 27/11/25"]
[]
[null,null,null,null,null,null,null,null,null,null,"Note that there is another version of this template available for co-incinerators"]
[]
[]
[]
[null,"Add photo"]
[]
[]
[]
[]
[null,null,null,null,null,null,null,null,null,null,"Notes:"]
[null,null,null,null,null,null,null,null,null,null,"This template may require adjustments by individual operators to meet specific reporting requirements as defined in the site Permit(s)"]
[]
[]
[]
[]
[]
[]
[]
[]
[]
[]
[]
[]
[]
[]
[null,"Annual Performance Report 2025"]
[]
[null,"Permit EPR/XP3935TX/V005"]
[]
[null,"Severn Waste Services Limited"]
[]
[]
[]
[null,"EnviRecover"]
[]
[null,"Year:",2025]
[]
[null,"Address:","Hartlebury Trading Estate, Hartlebury, Kidderminster DY10 4JD"]
[]
[null,"Tel: ","01905 761680"]
[]
[null,"Email: ","enquiries@severnwaste.co.uk"]
[]
[null,"Prepared by:","Sandy Edge",null,null,"Position:","Environmental Technician"]
[]
[null,"Approved by:","Jasen Jordan",null,null,"Position:","Plant Manager"]
[]
[null,"Version:",2]
[]
[null,"Issue Date:","2026-03-24"]

{"sheet":"Facility Info","index":1,"n_rows":22,"n_cols":11,"rows_kept":22,"cut":false,"hidden":false,"merged":[[4,0,17,8],[21,0,53,8],[4,10,13,13],[21,10,30,13]]}
[{"$f":"+'Cover Page'!$B$29","v":"Annual Performance Report 2025"},null,null,null,{"$f":"+'Cover Page'!$B$33","v":"Severn Waste Services Limited"}]
[]
["Plant Description and Design",null,null,null,null,null,null,null,null,null,"Notes:"]
[]
["EnviRecover Energy from Waste facility is situated on the Hartlebury Trading Estate, some 2 km south east of Hartlebury.\n \nThe main purpose of the facility is to burn non-hazardous municipal, commercial and industrial waste and to recover energy by producing steam. The steam is then used to power a steam turbo generator which produces electricity for export to the grid. Typical hourly electrical export averaged over the year is 17.7MWh.\n\nThere is also the capability for further heat export to local consumers, although there is currently no local demand for this outlet.\n\nThe plant is permitted to process 230,000 tonnes per annum during a typical 8,000 hours of operation.\n",null,null,null,null,null,null,null,null,null,"Include summary of plant design, design capacity, no. of combustion lines, electrical and heat capacity and any other general information that describes the facility, its location and purpose "]
[]
[]
[]
[]
[]
[]
[]
[]
[]
[]
[]
[]
[]
[]
["Summary of Operational Processes and Procedures"]
[]
["Incoming waste vehicles drive into the tipping hall and discharge their loads into the waste storage bunker. Overhead crane grabs load the waste into the furnace feed hopper, from where the waste is fed into the furnace in a controlled manner. A moving combustion grate inside the furnace agitates the waste to ensure a complete burn. Pre-heated primary air is injected into the furnace from underneath the combustion grate. This helps to dry out any wet waste and it provides the oxygen for the fire. Secondary air is introduced above the grate for combustion control, and it also ensures complete combustion. As the waste moves down the grate it passes through several combustion zones until it is fully combusted down to ash. Bottom ash from the combustion grate is quenched with water and then conveyed via a metals extraction system to a concrete storage area prior to removal from site.\n\nTwo auxiliary oil fired burners are located in the combustion chamber. These are used for starting up the process, and will raise the temperature above the minimum temperature of 850°C for 2 seconds in the combustion chamber. This temperature is specified in the Environmental Permit as the minimum temperature at which waste combustion may occur. In normal operation, continuous operation of the auxiliary burners is not required as the waste fire is self-sustaining. The heat from the combustion of waste is captured by a water tube boiler, evaporators and superheaters which raise steam at 60 bar and 415°C to power a turbo generator. An economiser is fitted downstream of the boiler unit to pre-heat the incoming feed water.\n \nThe furnace is fitted with an aqueous ammonia injection system in order to control the facility’s emissions of NOx to air through selective non-catalytic reduction. A flue gas treatment centre incorporates a reactor with a dry hydrated lime injection system to neutralise acid flue gases. Activated carbon is also injected into the reactor to reduce the concentrations of heavy metals and dioxins in the combustion gases emitted to air. A bag house filter is used to separate out the resulting particulate matter from the cooled and treated gases.  Air pollution control residues from the bag house filter are collected continuously and stored in a dedicated silo prior to removal from the site.\n\nThe facility has a 75 m stack equipped with a Continuous Emission Monitoring System (CEMS) which continuously monitor for particulates, carbon monoxide (CO), sulphur dioxide (SO2), ammonia (NH3), hydrogen chloride (HCl), oxygen (O2), nitrogen oxides (NOx) and volatile organic compounds (VOC).\n \nThere is no discharge of process liquids to controlled waters. Uncontaminated surface and roof waters are discharged to the surface water drainage system via a series of interceptors, attenuation lagoons and isolation valves.\n \n\n",null,null,null,null,null,null,null,null,null,"Include summary of key processes and procedures such as (but not limited to); waste reception, control rooms, grate, bed and boiler, energy & heat  generation, cooling systems, residue management, emission controls, health and safety systems, maintenance"]

{"sheet":"Operational Data","index":2,"n_rows":65,"n_cols":10,"rows_kept":65,"cut":false,"hidden":false,"merged":[[4,9,23,9],[25,9,29,9],[53,0,57,0],[34,1,39,1],[3,1,3,2],[10,1,22,1],[26,1,28,1],[7,2,7,3]]}
[{"$f":"+'Cover Page'!$B$29","v":"Annual Performance Report 2025"},null,null,null,{"$f":"+'Cover Page'!$B$33","v":"Severn Waste Services Limited"}]
[]
["Operational Data"]
["Plant Size:",230000,null,"tonnes pa",null,null,null,null,null,"Notes:"]
["Nominal net thermal input:",68,"MWth",null,null,null,null,null,null,"* Export capacity = nominal generation capacity at the generator terminals minus nominal parasitic load.\n\n** CHP and district heating plants only - put N/A if no heat export.\n\n***  Combusted tonnage = tonnes delivered in period + (tonnes in bunker at start of period – tonnes in bunker at end of period), or equivalent calculation depending on plant type\n\n**** Availability Definition: The availability of a line is to be calculated by the number of hours the line reported Continuously Monitored emission levels to the Regulator through the calendar year divided by the total number of hours in that year. \n\nThe overall plant availability is calculated as the mean of all lines in the plant. For clarity this includes periods of abnormal operation.  \n\nRationale: The primary function of an Energy from Waste facility is the disposal of waste. It follows therefore that the availability of a plant is determined by the period of time a facility spends undertaking this activity.\n\n*****NCV of waste: This should be completed for all plants which have a boiler. Calculate using total thermal power produced by boiler/boiler efficiency, or other suitable calculation. \n"]
["Nominal electrical export capacity*:",22,"MWe"]
["Nominal heat export capacity**:","N/A","MWth"]
["No. of combustion lines:",1,"No. of steam turbines:",null,1]
[]
["Waste types received","Unit","Q1","Q2","Q3","Q4","Year Total","%"]
["Household / Local Authority","tonnes",46110.400000000001,37271.300000000003,39554.699999999997,45005.3,{"$f":"SUM(C11:F11)","v":167941.7},{"$f":"IF(G11>0,G11/$G$21,\"-\")","v":0.83530103409360523}]
["Commercial & Industrial ",null,10119.6,7994.8,5508.6,9490.6,{"$f":"SUM(C12:F12)","v":33113.599999999999},0.16469896590639491]
["Hazardous ",null,"-","-","-","-",0,"-"]
["Clinical",null,"-","-","-","-",0,"-"]
["Waste wood (biomass) ",null,"-","-","-","-",0,"-"]
["Refuse Derived Fuel (incl. SRF) - H'hold/LA",null,"-","-","-","-",{"$f":"SUM(C16:F16)","v":0},"-"]
["Refuse Derived Fuel (incl. SRF) - C&I",null,"-","-","-","-",0,"-"]
["Other [Please specify]",null,"-","-","-","-",0,"-"]
["Other [Please specify]",null,"-","-","-","-",0,"-"]
["Other [Please specify]",null,"-","-","-","-",0,"-"]
["Total waste received",null,{"$f":"SUM(C11:C20)","v":56230},{"$f":"SUM(D11:D20)","v":45266.100000000006},{"$f":"SUM(E11:E20)","v":45063.299999999996},{"$f":"SUM(F11:F20)","v":54495.9},201055.3]
["Rejected Waste ",null,"-","-","-","-",{"$f":"SUM(C22:F22)","v":0},{"$f":"IF(G22>0,G22/$G$21,\"-\")","v":"-"}]
["Unprocessed waste transferred out",null,"-","-","-","-",{"$f":"SUM(C23:F23)","v":0},{"$f":"IF(G23>0,G23/$G$21,\"-\")","v":"-"}]
["Total waste combusted ***",null,57308.2,50264.5,42948.6,56990,{"$f":"SUM(C24:F24)","v":207511.3}]
[]
["Energy Usage / Export","Unit","Q1","Q2","Q3","Q4","Year Total","KWh/te",null,"Password for protected cells\nA password has been set to prevent accidental  editing of cells with formulae. \nIf you still need to make an edit for some reason then the password = 1234"]
["Power generated at generator terminals","MWh",43784,39194,34603,42889,{"$f":"SUM(C27:F27)","v":160470},{"$f":"IF(G27>0,G27*1000/$G$24,\"-\")","v":773.30728495267488}]
["Power exported to grid and other external user(s)",null,38607.519999999997,34601.89,30618.33,37929.26,{"$f":"SUM(C28:F28)","v":141757},{"$f":"IF(G28>0,G28*1000/$G$24,\"-\")","v":683.12906333293665}]
["Power imported",null,4.1999999999999997E-3,147.78829999999999,261.63839999999999,97.105599999999995,506.53649999999993,{"$f":"IF(G29>0,G29*1000/$G$24,\"-\")","v":2.4410068270980902}]
["Indicative parasitic load","%",{"$f":"IF(C27>0,(C27-C28)/C27,\"-\")","v":0.11822766307326885},{"$f":"IF(D27>0,(D27-D28)/D27,\"-\")","v":0.11716359646884729},0.1151538883911799,0.11564130662873925,{"$f":"IF(G27>0,1-G28/(G27+G29),\"-\")","v":0.11939340302553958}]
["Thermal Energy Exported **",null,null,null,null,null,{"$f":"SUM(C31:F31)","v":0},{"$f":"IF(G31>0,G31*1000/$G$24,\"-\")","v":"-"}]
["R1 value (if applicable)","R1","-","-","-","-",0.8]
[]
["Waste Disposal & Recovery","Unit","Q1","Q2","Q3","Q4","Year Total","% inputs"]
["APC Residues - produced","tonnes",1625,1433.8,1193.5999999999999,1522,{"$f":"SUM(C35:F35)","v":5774.4},{"$f":"IF(G35>0,G35/$G$24,\"-\")","v":2.7826918341314424E-2}]
["IBA - produced",null,10669.1,10891,8614.1,11431.9,41606.1,{"$f":"IF(G36>0,G36/$G$24,\"-\")","v":0.20050040648388787}]
["Metals recycling",null,763,709,654,147,{"$f":"SUM(C37:F37)","v":2273},1.0953620357060073E-2]
["Other",null,0,0,0,0,{"$f":"SUM(C38:F38)","v":0},"-"]
["Other",null,0,0,0,0,0,"-"]
["Other",null,0,0,0,0,0,"-"]
[]
["Raw Material Usage","Unit","Q1","Q2","Q3","Q4","Year Total","Qty./te"]
["Mains Water","ltrs",8440000,8978000,7702000,8967000,{"$f":"SUM(C43:F43)","v":34087000},{"$f":"IF(G43>0,G43/$G$24,\"-\")","v":164.26575323849835}]
["Other Water","ltrs","-","-","-","-",0,{"$f":"IF(G44>0,G44/$G$24,\"-\")","v":"-"}]
["Ammonia","kgs",737.86,2249.88,3634.38,23819.78,30441.9,0.14669996284539688]
["Urea","kgs","-","-","-","-",{"$f":"SUM(C46:F46)","v":0},"-"]
["Activated Carbon","kgs",16760,13910,9690,12180,52540,0.25319103104264684]
["Lime / hydrated lime","kgs",621260,597600,482330,602760,2303950,11.102768861262014]
["Fuel oil","ltrs",44897.279999999999,146492.9,75111.61,49696.29,316198.07999999996,1.5237631878360358]
["Gas","m3","-","-","-","-",0,"-"]
["Other",null,"-","-","-","-",0,"-"]
[]
["Summary ","Line/Unit","Q1","Q2","Q3","Q4","Year Total","Hrs in year "]
["Availability of waste combustion by line, hrs ****",1,2132.25,1988.73,1732.75,2098.86,{"$f":"SUM(C54:F54)","v":7952.59},{"$f":"+G54/$I$54","v":0.90782990867579916},8760,"Change this figure to 8784 in a leap year"]
[null,2,null,null,null,null,0,{"$f":"+G55/$I$54","v":0}]
[null,3,null,null,null,null,0,0]
[null,4,null,null,null,null,0,0]
[null,5,null,null,null,null,{"$f":"SUM(C58:F58)","v":0},0]
["Hours of turbine operations, hrs",1,2161,1986.74,1715.5,2096.9,7960.1399999999994,0.90869178082191771]
["Hours of turbine operations, hrs",2,null,null,null,null,0,0]
["Hours of heat / steam export**","hours",null,null,null,null,0,{"$f":"IF(B61>0,G60/I54,\"n/a\")","v":0}]
["Net calorific value of waste*****","MJ/kg",9.4700000000000006,10.029999999999999,10.33,9.41]
["Abnormal operation events","qty.",0,1,0,"-",1,{"$f":"IF(G63>0,\"yes\",\"no\")","v":"yes"}]
["Abnormal operation duration","hours",0,1,0,0,1,{"$f":"+(G64)/I54","v":1.1415525114155251E-4}]
["Permit Breaches","qty.","-","-","-","-",0,{"$f":"IF(G65>0,\"yes\",\"no\")","v":"no"}]

{"sheet":"Operational Summary","index":3,"n_rows":34,"n_cols":11,"rows_kept":34,"cut":false,"hidden":false,"merged":[[29,10,42,13],[4,0,26,8],[4,10,13,13],[28,1,28,8],[29,2,29,8],[30,2,30,8],[31,2,31,8],[32,2,32,8],[33,2,33,8],[34,2,34,8],[35,2,35,8],[36,2,36,8],[37,2,37,8],[38,2,38,8],[44,2,44,8],[39,2,39,8],[40,2,40,8],[41,2,41,8],[42,2,42,8],[43,2,43,8]]}
[{"$f":"+'Cover Page'!$B$29","v":"Annual Performance Report 2025"},null,null,null,{"$f":"+'Cover Page'!$B$33","v":"Severn Waste Services Limited"}]
[]
["Summary of Plant Operations and Maintenance during the reporting year",null,null,null,null,null,null,null,null,null,"Notes:"]
[]
["The plant processed 207,511 tonnes throughout 2025\n\nElectricity exported was 141,757 MWhs throughout 2025\n\nThe boiler recorded 7953 operational hours in 2025 and the turbo generator was operational for 7960 hours.\nThe remaining hours of the year were allocated to;\n\n 1. The scheduled, annual maintenance shutdown in July to allow for internal inspections, tests and repairs. This included a upgrade to the boiler tubes in the 2nd and 4th passes.\n\n 2. An unscheduled shutdown related to a boiler tube leak in May and October. Also, 3 days to clear blocked recirculation channels.",null,null,null,null,null,null,null,null,null,"Include summary of key operational and/or maintenance activity undertaken in the year, such as any major component upgrades and/or replacements "]
[]
[]
[]
[]
[]
[]
[]
[]
[]
[]
[]
[]
[]
[]
[]
[]
[]
[]
[]
[]
[]
[]
[]
[{"$f":"+'Cover Page'!C39","v":2025},"Plant shut-downs"]
["Start date","End date","Reason for shut-down",null,null,null,null,null,null,null,"Provide a very brief reason for plant shut-down e.g. \"Shut-down prior to major outage\"; \"Emergency shut-down due to boiler tube leak\". All emergency shut-downs must be listed (irrespective of whether or not they were required to be reported to the EA). \n\nThere is no need to include periods of hot-standby here (e.g. to clear feed chute hopper blockages).\n\nFor clinical waste incinerators which require regular shut-downs for boiler cleaning, there is no need to record these here (only those prior to major outages, and emergency shut-downs). "]
["2025-05-04","2025-05-08","Emergency shutdown, boiler furnace tube failure."]
["2025-05-31","2025-06-02","Shutdown to clear blockages from recirculation channels."]
["2025-07-01","2025-07-20","Shutdown for planned annual outage."]
["2025-10-13","2025-10-18","Shutdown for boiler tube leak repairs."]

{"sheet":"Perf. Form 1","index":4,"n_rows":54,"n_cols":10,"rows_kept":54,"cut":false,"hidden":false,"merged":[[53,7,53,8],[47,0,47,1],[49,0,49,9],[50,0,51,9],[38,0,38,9],[39,0,40,9],[43,0,43,1],[43,2,43,9],[45,0,45,1],[46,0,46,1],[36,0,36,3],[36,4,36,5],[36,7,36,8],[37,0,37,3],[37,4,37,5],[37,7,37,8],[34,0,34,3],[34,4,34,5],[34,7,34,8],[35,0,35,3],[35,4,35,5],[35,7,35,8],[31,0,31,3],[31,7,31,8],[32,0,32,3],[32,4,32,5],[32,7,32,8],[33,0,33,3],[33,4,33,5],[33,7,33,8],[23,0,23,3],[23,4,23,5],[23,6,23,7],[23,8,23,9],[25,0,25,9],[26,0,28,9],[21,0,21,1],[21,2,21,3],[21,4,21,5],[21,6,21,7],[21,8,21,9],[22,0,22,3],[22,4,22,5],[22,6,22,7],[22,8,22,9],[19,0,19,1],[19,2,19,3],[19,4,19,5],[19,6,19,7],[19,8,19,9],[20,0,20,1],[20,2,20,3],[20,4,20,5],[20,6,20,7],[20,8,20,9],[17,0,17,1],[17,2,17,3],[17,4,17,5],[17,6,17,7],[17,8,17,9],[18,0,18,1],[18,2,18,3],[18,4,18,5],[18,6,18,7],[18,8,18,9],[15,0,15,1],[15,2,15,3],[15,4,15,5],[15,6,15,7],[15,8,15,9],[16,0,16,9],[13,0,13,1],[13,2,13,3],[13,4,13,5],[13,6,13,7],[13,8,13,9],[14,0,14,3],[14,4,14,5],[14,6,14,7],[14,8,14,9],[11,0,11,1],[11,2,11,3],[11,4,11,5],[11,6,11,7],[11,8,11,9],[12,0,12,1],[12,2,12,3],[12,4,12,5],[12,6,12,7],[12,8,12,9],[9,0,9,9],[10,0,10,1],[10,2,10,3],[10,4,10,5],[10,6,10,7],[10,8,10,9],[2,0,2,4],[2,6,2,8],[3,1,3,4],[5,3,5,4],[5,6,5,7],[8,0,8,1],[8,2,8,3],[8,4,8,5],[8,6,8,7],[8,8,8,9]]}
[{"$f":"+'Cover Page'!C39","v":2025}," Annual Reporting Performance Form 1"]
[]
[{"$f":"+'Cover Page'!B31","v":"Permit EPR/XP3935TX/V005"},null,null,null,null,"Operator: ",{"$f":"+'Cover Page'!B37","v":"EnviRecover"}]
["Facility:",{"$f":"+'Cover Page'!B33:I33","v":"Severn Waste Services Limited"},null,null,null,"Form:","Performance 1"]
[]
["Reporting  Period from: ",null,null,"2025-01-01",null,"to:","2025-12-31"]
[]
[{"$f":"+A1","v":2025},"Annual Reporting of Waste Disposal and Recovery"]
["Waste Description",null,"Disposal Route(s)",null,"Disposal Tonnes",null,"Recovery Tonnes",null,"% / tonne of waste incinerated"]
["1) Hazardous Wastes"]
["APC Residues",null,null,null,0,null,5774,null,{"$f":"IF((E11+G11)>0,(E11+G11)/'Operational Data'!$G$24, \"-\")","v":2.782499073544429E-2}]
["IBA",null,null,null,0,null,0,null,{"$f":"IF((E12+G12)>0,(E12+G12)/'Operational Data'!$G$24, \"-\")","v":"-"}]
[null,null,null,null,null,null,null,null,{"$f":"IF((E13+G13)>0,(E13+G13)/'Operational Data'!$G$24, \"-\")","v":"-"}]
[null,null,null,null,null,null,null,null,{"$f":"IF((E14+G14)>0,(E14+G14)/'Operational Data'!$G$24, \"-\")","v":"-"}]
["Total Hazardous Waste",null,null,null,{"$f":"SUM(E11:F14)","v":0},null,{"$f":"SUM(G11:H14)","v":5774},null,{"$f":"IF((E15+G15)>0,(E15+G15)/'Operational Data'!$G$24, \"-\")","v":2.782499073544429E-2}]
[]
["2) Non-Hazardous Wastes"]
["IBA",null,null,null,0,null,41606.1,null,{"$f":"IF((E18+G18)>0,(E18+G18)/'Operational Data'!$G$24, \"-\")","v":0.20050040648388787}]
["Ferrous Metal",null,null,null,0,null,2273.3000000000002,null,{"$f":"IF((E19+G19)>0,(E19+G19)/'Operational Data'!$G$24, \"-\")","v":1.0955066061462678E-2}]
["Process Water",null,null,null,0,null,0,null,{"$f":"IF((E20+G20)>0,(E20+G20)/'Operational Data'!$G$24, \"-\")","v":"-"}]
[null,null,null,null,null,null,null,null,{"$f":"IF((E21+G21)>0,(E21+G21)/'Operational Data'!$G$24, \"-\")","v":"-"}]
[null,null,null,null,null,null,null,null,{"$f":"IF((E22+G22)>0,(E22+G22)/'Operational Data'!$G$24, \"-\")","v":"-"}]
["Total Non-Hazardous Waste",null,null,null,{"$f":"SUM(E18:F22)","v":0},null,{"$f":"SUM(G18:H22)","v":43879.4},null,{"$f":"IF((E23+G23)>0,(E23+G23)/'Operational Data'!$G$24, \"-\")","v":0.21145547254535055}]
["TOTAL WASTE",null,null,null,{"$f":"+E23+E15","v":0},null,{"$f":"+G23+G15","v":49653.4},null,{"$f":"IF((E24+G24)>0,(E24+G24)/'Operational Data'!$G$24, \"-\")","v":0.23928046328079486}]
[]
["Operator’s comments :"]
[]
[]
[]
[]
[{"$f":"+A1","v":2025},"Annual Reporting of Water and Other Raw Material Usage"]
["Raw Material",null,null,null,"Usage",null,"Unit","Specific Usage",null,"Unit"]
["Mains Water",null,null,null,{"$f":"+'Operational Data'!G43/1000","v":34087},null,"m3",{"$f":"IF(E33>0,E33/'Operational Data'!$G$24,\"-\")","v":0.16426575323849835},null,"m3/te"]
["Total Water",null,null,null,{"$f":"+'Operational Data'!G44+'Operational Data'!G43/1000","v":34087},null,"m3",{"$f":"IF(E34>0,E34/'Operational Data'!$G$24,\"-\")","v":0.16426575323849835},null,"m3/te"]
["Urea / Ammonia",null,null,null,{"$f":"+'Operational Data'!G45","v":30441.9},null,"kg",{"$f":"IF(E35>0,E35/'Operational Data'!$G$24,\"-\")","v":0.14669996284539688},null,"kg/te"]
["Activated Carbon",null,null,null,{"$f":"+'Operational Data'!G47","v":52540},null,"kg",{"$f":"IF(E36>0,E36/'Operational Data'!$G$24,\"-\")","v":0.25319103104264684},null,"kg/te"]
["Lime / hydrated lime / Sodium Bicarb.",null,null,null,{"$f":"+'Operational Data'!G48","v":2303950},null,"kg",{"$f":"IF(E37>0,E37/'Operational Data'!$G$24,\"-\")","v":11.102768861262014},null,"kg/te"]
[]
["Operator’s comments :"]
[]
[]
[]
[{"$f":"+A31","v":2025},"Annual Reporting of other performance indicators "]
["Parameter",null,"Results by Line"]
[null,null,"A1","A2","A3","A4","A5",null,"Turbine 1","Turbine 2"]
["Operating hours for the year, hours",null,7952]
["Number of periods of abnormal operation, qty.",null,1]
["Cumulative hours of abnormal operation for this year, hours",null,1]
[]
["Operator’s comments :"]
[]
[]
[]
["Signed: ",null,null,null,null,null,"Date:","2026-03-27"]

{"sheet":"Energy Form 1","index":5,"n_rows":29,"n_cols":8,"rows_kept":29,"cut":false,"hidden":false,"merged":[[28,7,28,8],[15,0,15,2],[15,3,15,4],[15,6,15,8],[17,0,17,8],[18,0,24,8],[13,0,13,2],[13,3,13,4],[13,6,13,8],[14,0,14,2],[14,3,14,4],[14,6,14,8],[11,0,11,2],[11,3,11,4],[11,6,11,8],[12,0,12,2],[12,3,12,4],[12,6,12,8],[9,0,9,2],[9,3,9,4],[9,6,9,8],[10,0,10,2],[10,3,10,4],[10,6,10,8],[2,6,2,8],[4,1,4,4],[6,3,6,4],[6,6,6,7],[8,0,8,2],[8,3,8,4],[8,6,8,8]]}
[{"$f":"+'Cover Page'!C39","v":2025}," Annual Reporting of Energy Usage/Export"]
[]
[{"$f":"+'Cover Page'!B31","v":"Permit EPR/XP3935TX/V005"},null,null,null,null,"Operator: ",{"$f":"+'Cover Page'!B37","v":"EnviRecover"}]
[]
["Facility:",{"$f":"+'Cover Page'!B33:I33","v":"Severn Waste Services Limited"},null,null,null,"Form:","Energy 1"]
[]
["Reporting  Period from: ",null,null,{"$f":"+'Perf. Form 1'!D6:E6","v":"2025-01-01"},null,"to:",{"$f":"+'Perf. Form 1'!G6:H6","v":"2025-12-31"}]
[]
["Energy Source",null,null,"Energy Usage",null,"Unit","Specific Usage (KWh/tonne incinerated"]
["Electricity Produced",null,null,{"$f":"+'Operational Data'!G27","v":160470},null,"MWh",{"$f":"+'Operational Data'!H27","v":773.30728495267488}]
["Electricity Imported   ",null,null,{"$f":"+'Operational Data'!G29","v":506.53649999999993},null,"MWh",{"$f":"+'Operational Data'!H29","v":2.4410068270980902}]
["Electricity Exported",null,null,{"$f":"+'Operational Data'!G28","v":141757},null,"MWh",{"$f":"+'Operational Data'!H28","v":683.12906333293665}]
["Gas Oil",null,null,316.2,null,"tonnes",1.52]
["Steam/hot water exported",null,null,{"$f":"+'Operational Data'!G31","v":0},null,"GWh",{"$f":"+'Operational Data'!H31","v":"-"}]
[]
[]
[]
["Operator’s comments :"]
[]
[]
[]
[]
[]
[]
[]
[]
[]
[]
["Signed: ",null,null,null,null,null,"Date:","2026-03-27"]

{"sheet":"Permit Compliance","index":6,"n_rows":30,"n_cols":12,"rows_kept":30,"cut":false,"hidden":false,"merged":[[24,1,24,2],[25,0,25,8],[19,7,19,8],[19,1,19,2],[19,3,19,5],[24,3,24,5],[21,0,22,0],[21,7,22,7],[21,8,22,8],[21,6,22,6],[21,3,22,5],[21,1,22,2],[23,1,23,8],[8,11,20,11],[27,0,27,10],[18,0,18,10],[32,1,32,3],[32,4,32,6],[32,7,32,9],[28,1,28,3],[28,4,28,6],[28,7,28,9],[29,1,29,3],[29,4,29,6],[29,7,29,9],[14,0,14,1],[14,2,14,4],[14,5,14,8],[15,0,15,1],[33,1,33,3],[33,4,33,6],[33,7,33,9],[30,1,30,3],[30,4,30,6],[30,7,30,9],[31,1,31,3],[31,4,31,6],[31,7,31,9],[16,2,16,4],[16,5,16,8],[15,2,15,4],[15,5,15,8],[16,0,16,1],[13,5,13,8],[7,0,7,1],[7,2,7,8],[8,0,8,1],[8,2,8,4],[8,5,8,8],[21,9,22,9],[34,4,34,8],[9,0,9,1],[9,2,9,4],[9,5,9,8],[10,0,10,1],[10,2,10,4],[10,5,10,8],[11,0,11,1],[11,2,11,4],[11,5,11,8],[12,0,12,1],[12,2,12,4],[12,5,12,8],[13,0,13,1],[13,2,13,4]]}
[{"$f":"+'Cover Page'!$B$29","v":"Annual Performance Report 2025"},null,null,null,{"$f":"+'Cover Page'!$B$33","v":"Severn Waste Services Limited"}]
[]
["Summary of Permit Compliance"]
[]
["Compliance with permit limits for continuously monitored pollutants"]
[]
["The plant met its emission limits as shown in the table below:"]
["Substance",null,"Percentage time compliant during operationNote 1",null,null,null,null,null,null,null,null,"Notes:"]
[null,null,"Half-hourly limit",null,null,"Daily limit",null,null,null,null,null,"Note 1: Please report to 2 decimal places, i.e. xx.xx%\n\nNote 2: Please enter into this table any permit non-compliances that the EA has given a CCS score for. Please also enter any other non-compliances which you have notified to the EA (e.g. ELV exceedances) but which have not yet been assessed by the EA. There is no need to enter any notifications which were subsequently assessed by the EA not to be permit breaches.  \n\nNote 3: Please enter information here (rather than just referencing the notifications that were sent to the EA) including where relevant the incineration line reference, pollutant and value of the measured result for any ELV exceedances.   \n\n"]
["Particulates",null,1,null,null,1]
["Oxides of nitrogen",null,1,null,null,0.3962]
["Sulphur dioxide",null,1,null,null,1]
["Carbon monoxide",null,"100.00% 95% of 10-min averages",null,null,1]
["Total organic carbon",null,0.99990000000000001,null,null,1]
["Hydrogen chloride",null,1,null,null,1]
["Hydrogen fluoride",null,1,null,null,1]
[]
[]
["Summary of non-compliances under the permit Note 2"]
["Date","Summary of non-compliance Note 3",null,"Reason ",null,null,"Measures taken to prevent reoccurrence","CCS score if applicable*"]
[null,null,null,null,null,null,null,"Impact","Root cause"]
["2025-10-19","TOC 30 minute average exceedance of 25.29 mg/m3 (limit 20 mg/m3)",null,"Explosion in furnace",null,null,"Shredding of waste increased"]
[]
["Jan  - Dec","Data recalculated at the request of the Environment Agency and under review."]
[]
["*If the Environment Agency (EA) has given a Compliance Classification Scheme (CCS) score due to a permit non-compliance it should be entered here (CCS4 = No impact; CCS3 = Minor impact; CCS2 = Significant impact; CCS1 = Major impact). If the EA has not yet assessed a non-compliance which you have notified to them, these columns should be left blank. Enter N/A if no score was given for the root cause.  "]
[]
[" Summary of any complaints received and actions to taken to resolve them."]
["Date","Summary of complaint [including Line/Reference]",null,null,"Reason (including whether substantiated by the operator or the EA)",null,null,"Measures taken to prevent reoccurrence"]
[null,"NONE"]

{"sheet":"Improvements","index":7,"n_rows":39,"n_cols":5,"rows_kept":39,"cut":false,"hidden":false,"merged":[[37,0,37,8],[38,0,47,8],[4,0,4,8],[5,0,13,8],[15,0,15,8],[16,0,24,8],[26,0,26,8],[27,0,35,8]]}
[{"$f":"+'Cover Page'!$B$29","v":"Annual Performance Report 2025"},null,null,null,{"$f":"+'Cover Page'!$B$33","v":"Severn Waste Services Limited"}]
[]
["Summary of Plant Improvements"]
[]
["Summary of any efficiency improvements that have been completed within the year."]
["1. Continual upgrade of refractory within the boiler 1st pass\n2. Replacement of Secondary air ducting and nozzles\n3. Replacement of Recirculation air ducting and nozzles"]
[]
[]
[]
[]
[]
[]
[]
[]
[]
["Summary of any permit improvement conditions that have been completed within the year and the resulting environmental benefits."]
["1. Install of C14 analyser"]
[]
[]
[]
[]
[]
[]
[]
[]
[]
["Summary of any changes to the plant or operating techniques which required a variation to the permit and a summary of the resulting environmental impact."]
["None"]
[]
[]
[]
[]
[]
[]
[]
[]
[]
["Summary of any other improvements made to the plant or planned to be made and a summary of the resulting environmental benefits."]
["None"]

{"sheet":"Public Liasion","index":8,"n_rows":37,"n_cols":5,"rows_kept":37,"cut":false,"hidden":false,"merged":[[16,0,16,1],[16,2,17,8],[31,0,32,1],[31,2,32,8],[24,0,24,1],[24,2,24,8],[23,0,23,8],[18,0,18,1],[20,0,20,1],[33,0,34,1],[33,2,34,8],[36,0,36,8],[25,0,26,1],[25,2,26,8],[27,0,28,1],[27,2,28,8],[29,0,30,1],[29,2,30,8],[5,0,5,1],[5,2,5,8],[6,0,7,1],[6,2,7,8],[14,0,15,1],[14,2,15,8],[8,0,9,1],[8,2,9,8],[10,0,11,1],[10,2,11,8],[12,0,13,1],[12,2,13,8]]}
[{"$f":"+'Cover Page'!$B$29","v":"Annual Performance Report 2025"},null,null,null,{"$f":"+'Cover Page'!$B$33","v":"Severn Waste Services Limited"}]
[]
["Details of Public & Stakeholder Liaison"]
[]
["Summary of events held during the reporting year."]
["Date",null,"Description"]
["2025-01-21",null,"Public Site Tour"]
[]
["2025-03-18",null,"Public Site Tour"]
[]
["2025-04-15",null,"Public Site Tour"]
[]
["2025-05-20",null,"Public Site Tour"]
[]
["2025-08-19",null,"Public Site Tour"]
[]
["2025-10-14",null,"Public Site Tour"]
[]
["2025-05-16",null,"Community Liason Group"]
[]
["2025-12-02",null,"Birmingham University - Student Visit"]
[]
[]
["List of events planned for next year"]
["Date",null,"Description"]
["Jan - Dec",null,"Public Site Tours"]
[]
["2026-12-01",null,"Birmingham University - Student Visit"]
[]
[]
[]
[]
[]
[]
[]
[]
["If you wish to be involved in the public liaison programme, please contact _________________"]

{"sheet":"CO2 N2O","index":9,"n_rows":25,"n_cols":6,"rows_kept":25,"cut":false,"hidden":false,"merged":[[11,0,11,1],[14,0,14,1],[15,0,15,1],[16,0,16,1],[25,0,25,3],[18,0,18,1],[19,0,19,1],[20,0,20,1],[21,0,21,1],[22,0,22,1],[6,5,9,5],[22,2,22,3],[16,2,16,3],[4,0,4,3],[9,0,9,3],[17,0,17,3],[13,0,13,3],[12,0,12,1],[8,2,8,3],[11,2,11,3],[19,2,19,3],[5,0,5,1],[6,0,6,1],[7,0,7,1],[8,0,8,1],[10,0,10,1]]}
[{"$f":"+'Cover Page'!$B$29","v":"Annual Performance Report 2025"},null,{"$f":"+'Cover Page'!$B$33","v":"Severn Waste Services Limited"}]
[]
["Carbon dioxide emissions and biogenic content of waste inputs",null,null,null,null,"Notes:"]
[]
["Carbon dioxide emissions (all types of plant)"]
["Annual mass of carbon dioxide released",null,"tonnes ",116904.52]
["Annual mass of carbon dioxide released per tonne of waste burned",null,"t CO2 / t waste ",{"$f":"SUM(D6/'Operational Data'!G24)","v":0.56336459749420875},null,"Note 1: All permits require operators to continuously monitor CO2 to EN14181 and flow to BS EN 16911-2 (unless otherwise agreed in writing). Operators must therefore use the results from these instruments to calculate their annual CO2 emissions. Where an operator does not have a flow meter calibrated to BS EN 16911-2, the averaged flow measurement from that year's periodic monitoring can be used instead. If the plant does not have calibrated CO2 CEMS, a suitably justified emissions factor can be used. \n\n"]
["Annual mass of carbon dioxide released per MWh of energy exported",null,"t CO2 / MWh export ",{"$f":"SUM(D6/'Operational Data'!G28)","v":0.82468252008719145}]
["Description of how annual carbon dioxide mass emission has been calculated. \nSee Note 1",null,"Annual stack flow (kNm3) = operational hours x average hourly flow. CO2 volume = Average CO2 % x annual flow. CO2 mass = volume x density (1.28kg/Nm3)"]
["Nitrous oxide emissions (only plants which use ammonia or urea to abate NOx emissions)"]
["Annual mass emissions of nitrous oxide",null,"tonnes N2O",2.3E-2]
["Description of how annual nitrous oxide mass emission has been calculated\nSee Note 2",null,"Annual stack flow (m3) X N2O average concentration (m3)",null,null,"Note 2: All permits require operators to continuously monitor N2O to EN14181 and flow to BS EN 16911-2, unless otherwise agreed in writing. Operators must therefore use the results from these instruments to calculate their annual N2O emissions. Where an operator does not have a flow meter calibrated to BS EN 16911-2, the averaged flow measurement from periodic monitoring can be used instead. If the plant does not have calibrated N2O CEMS, data from periodic monitoring or a suitably justified emissions factor can be used instead."]
["Total annual carbon dioxide + nitrous oxide emissions. \nSee Note 3. ",null,"tonnes CO2e",{"$f":"SUM(D11+D6)","v":116904.54300000001},null,"Note 3: Total annual carbon dioxide and nitrous oxide emissions reported as carbon dioxide equivalent where 1 tonne nitrous oxide is equivalent to 265 tonnes carbon dioxide."]
["Biogenic CO2 emissions (See Note 4)",null,null,null,null,"Note 4: Only plants combusting residual municipal waste, refuse derived fuel or solid recovered fuel need complete this section. "]
["Percentage of total carbon dioxide emissions arising from biogenic waste",null,"%",0.55649999999999999]
["No. of measurements undertaken",null,"Number",4]
["Description of how percentage biogenic carbon dioxide emissions have been measured or calculated.\nSee Note 5",null,"Biogenic fraction by net calorific value assumed to be the same as the biogenic CO2 fraction of the total CO2 emissions from the plant.",null,null,"Note 5: The results from C14 sampling should be used if this is carried out at the plant (either via an installed sampler or from spot samples).  \nOtherwise, as an approximation (and in lieu of any more accurate metrics which may be developed in future), the measured or estimated biogenic fraction by net calorific value (see Note 6) can be assumed to be the same as the biogenic CO2 fraction of the total CO2 emissions from the plant. "]
["Biogenic fraction of waste feedstock (See Note 4)"]
["Yearly average biogenic percentage of the waste by net calorific value (NCV)",null,"%",0.55649999999999999]
["Description of how biogenic percentage (by NCV) has been calculated or estimated. \nSee Note 6",null,"Quarterly waste analysis is carried out by an external contractor. Reported data for % by CV of biogenic fraction has been used to attain an annual average.",null,null,"Note 6: If C14 sampling is carried out at the plant, the methodology set out in the embedded document entitled \"Renewable Energy Association Energy Content of Fuels - Description of Method\" embedded below can be used to calculate the biogenic percentage by net calorific value. Otherwise, data from waste sampling or BIOMA software can be used; or if none of these are available, an estimated figure with justification or a figure assumed on the basis of up-to-date industry data can be used. "]
["Yearly average biogenic percentage of the waste by mass",null,"%",0.66679999999999995]
["If waste sampling undertaken, no. of samples used to ascertain average biogenic percentages above",null,"Number",4]
["Description of how biogenic percentage (by mass) has been calculated or estimated. \nSee Note 7",null,"Quarterly waste analysis is carried out by an external contractor. Reported data for % by mass of biogenic fraction has been used to attain an annual average.",null,null,"Note 7: Where available, data from waste sampling should be used; otherwise, an estimated figure with justification can be used, or a figure assumed on the basis of up-to-date industry data. "]
[]
[null,"Comments:"]

{"sheet":"Residues","index":10,"n_rows":61,"n_cols":11,"rows_kept":61,"cut":false,"hidden":false,"merged":[[61,0,66,6],[57,3,57,4],[60,0,60,6],[52,0,53,1],[54,0,54,1],[55,0,55,1],[56,0,56,1],[57,0,57,1],[54,3,54,4],[55,3,55,4],[54,5,54,6],[55,5,55,6],[56,5,56,6],[57,5,57,6],[58,0,58,6],[45,0,46,1],[45,2,46,6],[47,0,48,1],[47,2,48,6],[56,3,56,4],[52,2,53,2],[53,3,53,4],[53,5,53,6],[52,3,52,6],[51,0,51,6],[4,10,13,13],[41,0,42,1],[41,2,42,6],[43,0,44,1],[43,2,44,6],[37,0,37,6],[38,0,38,1],[38,2,38,6],[39,0,40,1],[39,2,40,6],[30,0,35,6],[4,0,25,6]]}
[{"$f":"+'Cover Page'!$B$29","v":"Annual Performance Report 2025"},null,null,null,{"$f":"+'Cover Page'!$B$33","v":"Severn Waste Services Limited"}]
[]
["Summary of Residue Handling for the reporting year"]
[]
["Incinerator Bottom Ash (IBA) produced at EnviRecover is stockpiled at another facility operated by Severn Waste Services. This stockpile is processed by a third party on an annual basis to recover metals and produce IBAA aggregate.\n\nAir Pollution Control residues (APCr) are collected by road tanker, loaded directly from the APCr silo. The  APCr was processed by Augean to produce R5 code structure containment at its Port Clarence Land Fill site.",null,null,null,null,null,null,null,null,null,"Include in here a summary of residue handling regimes and destinations "]
[]
[]
[]
[]
[]
[]
[]
[]
[]
[]
[]
[]
[]
[]
[]
[]
[]
[]
[]
[]
[]
[]
["Residue Quality Monitoring Requirements"]
[]
["Summary of monitoring undertaken and compliance"]
["The sampling and analysis of IBA and APCr has been completed and reported at the required frequency. There were 24 IBA samples submitted for analysis and 4 APCr samples during the year. \n\nThe laboratory results are reviewed and discussed during management meetings on a monthly basis. The results for the year demonstrate that our IBA continues to hold non-hazardous status. There were 3 minor exceedances which are detailed below. The APCr results demonstrate consistency and the parameters analysed are at levels which would be considered typical for EfW."]
[]
[]
[]
[]
[]
[]
["Commentary on any specific events"]
["Date & Event",null,"Description"]
["2025-05-19",null,"Minor exceedance of the limit for HP14"]
[]
["2025-09-09",null,"Minor exceedance of the limit for HP14"]
[]
["2025-10-06",null,"Minor exceedance of the limit for HP14"]
[]
[]
[]
[]
[]
[]
[]
["Residue Quality Monitoring Results"]
["Parameter (unit) ",null,"Limit*","Normal Operation "]
[null,null,null,"Bottom ash  ",null,"APC Residues"]
["Loss on Ignition (average %)",null,"<5%",2.57]
["Total Organic Carbon (average %)",null,"<3%",1.2]
["No. of Assessments Undertaken",null,"---",24,null,4]
["No. of Hazardous Results",null,"---",3]
["* The permit will specify a limit of either 5% loss on ignition or 3% total organic carbon. If both are measured anyway, please enter the results here, even where the limit does not apply. "]
[]
["Comments :"]

{"sheet":"Water","index":11,"n_rows":23,"n_cols":9,"rows_kept":23,"cut":false,"hidden":false,"merged":[[29,0,29,2],[29,3,29,4],[26,0,26,2],[26,3,26,4],[27,0,27,2],[27,3,27,4],[28,0,28,2],[28,3,28,4],[23,0,23,2],[23,3,23,4],[24,0,24,2],[24,3,24,4],[25,0,25,2],[25,3,25,4],[21,0,21,8],[22,0,22,2],[22,3,22,4],[14,0,15,1],[14,2,15,8],[16,0,17,1],[16,2,17,8],[18,0,19,1],[18,2,19,8],[5,0,6,8],[7,0,8,8],[9,0,10,8],[12,0,12,8],[13,0,13,1],[13,2,13,8]]}
[{"$f":"+'Cover Page'!$B$29","v":"Annual Performance Report 2025"},null,null,null,{"$f":"+'Cover Page'!$B$33","v":"Severn Waste Services Limited"}]
[]
["Emissions to Water"]
[]
["Summary of monitoring undertaken and compliance"]
["There are no emissions to water."]
[]
[]
[]
[]
[]
[]
["Commentary on any specific events"]
["Date & Event",null,"Description"]
[]
[]
[]
[]
[]
[]
[]
["Emissions to Water / Sewer"]
["Parameter",null,null,"Monitoring Frequency",null,"Limit","Target","Max.","Average"]

{"sheet":"Air (periodic)","index":12,"n_rows":39,"n_cols":11,"rows_kept":39,"cut":false,"hidden":false,"merged":[[13,10,14,12],[15,10,16,10],[15,11,16,11],[15,12,16,12],[18,3,18,4],[13,3,13,4],[14,3,14,4],[15,3,15,4],[16,3,16,4],[17,3,17,4],[21,3,21,4],[22,3,22,4],[23,3,23,4],[24,3,24,4],[31,3,31,4],[25,3,25,4],[26,3,26,4],[28,3,28,4],[38,0,38,9],[19,0,19,1],[20,0,20,1],[21,0,21,1],[34,3,34,4],[35,3,35,4],[33,0,33,1],[34,0,34,1],[35,0,35,1],[36,0,36,1],[24,0,24,1],[32,3,32,4],[27,3,27,4],[33,3,33,4],[19,3,19,4],[20,3,20,4],[39,0,40,9],[25,0,25,1],[26,0,26,1],[22,0,22,1],[23,0,23,1],[37,0,37,1],[27,0,27,1],[28,0,28,1],[29,0,29,1],[30,0,30,1],[31,0,31,1],[32,0,32,1],[37,3,37,4],[29,3,29,4],[30,3,30,4],[36,3,36,4],[16,0,16,1],[17,0,17,1],[18,0,18,1],[13,0,13,1],[14,0,14,1],[15,0,15,1],[12,0,12,1],[11,3,11,4],[12,3,12,4],[9,0,10,1],[9,5,9,9],[9,3,10,4],[9,2,10,2],[5,10,8,13],[9,10,11,13],[8,0,8,9],[5,0,6,9],[11,0,11,1]]}
[{"$f":"+'Cover Page'!$B$29","v":"Annual Performance Report 2025"},null,null,null,{"$f":"+'Cover Page'!$B$33","v":"Severn Waste Services Limited"}]
[]
["Emissions to Air (periodically monitored)"]
[]
["Summary of monitoring undertaken, standards used and compliance",null,null,null,null,null,null,null,null,null,"Notes:"]
["Bi-annual stack emmissions testing has been carried out as specified in EnviRecover's Environmental Permit.",null,null,null,null,null,null,null,null,null,"Template may require adjustment for any bespoke monitoring requirements of permit - please also check that all default ELV values, reference periods and the stated oxygen reference value match those for your plant, and edit if necessary!"]
[]
[]
["Results of emissions to air that are periodically monitored - oxygen reference 11% "]
["Substance",null,"Ref. Period","Emission Limit Value",null,"Average",null,null,null,null,"User to add additional tables as necessary, depending on whether quarterly or bi-annual reporting is required for the compliance year"]
[null,null,null,null,null,"A1","A2","A3","A4","A5"]
["Hydrogen fluoride",null,"1 hr","1 mg/m3",null,5.7500000000000002E-2]
["Cd and Tl and their compounds",null,"0.5-8hrs","0.02 mg/m3",null,1.0699999999999999E-2]
["Hg and its compounds",null,"0.5-8hrs","0.02 mg/m3",null,1.35E-2]
["Sb, As, Pb, Cr, Co, Cu, Mn, Ni, V and their compounds",null,"0.5-8hrs","0.3 mg/m3",null,1.6E-2]
["Dioxins & Furans (I-TEQ)",null,"6-8hrs","0.06 ng/m3",null,1.4E-2]
["PCBs (WHO-TEQ Humans / Mammals)",null,"6-8hrs","None set ng/m3",null,1.5E-3]
["PCBs (WHO-TEQ Fish)",null,"6-8hrs","None set ng/m3",null,7.4999999999999993E-5]
["PCBs (WHO-TEQ Birds)",null,"6-8hrs","None set ng/m3",null,2.2000000000000001E-3]
["Dioxins & Furans (WHO-TEQ Humans / Mammals)",null,"6-8hrs","None set ng/m3",null,9.1999999999999998E-2]
["Dioxins & Furans (WHO-TEQ Fish)",null,"6-8hrs","None set ng/m3",null,1.4E-2]
["Dioxins & Furans (WHO-TEQ Birds)",null,"6-8hrs","None set ng/m3",null,2.9000000000000001E-2]
["Anthanthrene",null,"6-8hrs","None set µg/m3",null,1E-3]
["Benzo(a)anthracene",null,"6-8hrs","None set µg/m3",null,1E-3]
["Benzo(a)pyrene",null,"6-8hrs","None set µg/m3",null,1E-3]
["Benzo(b)fluoranthene",null,"6-8hrs","None set µg/m3",null,1E-3]
["Benzo(b)naptho(2,1-d) thiophene",null,"6-8hrs","None set µg/m3",null,1E-3]
["Benzo(c)phenanthrene",null,"6-8hrs","None set µg/m3",null,1E-3]
["Benzo(ghi)perylene",null,"6-8hrs","None set µg/m3",null,1E-3]
["Benzo(k)fluoranthene",null,"6-8hrs","None set µg/m3",null,1E-3]
["Cholanthrene",null,"6-8hrs","None set µg/m3",null,1E-3]
["Chrysene",null,"6-8hrs","None set µg/m3",null,1E-3]
["Cyclopenta(cd)pyrene",null,"6-8hrs","None set µg/m3",null,1E-3]
["Dibenzo(ai)pyrene",null,"6-8hrs","None set µg/m3",null,1E-3]
["Dibenzo(ah)anthracene",null,"6-8hrs","None set µg/m3",null,1E-3]
["Fluoranthene",null,"6-8hrs","None set µg/m3",null,2.1999999999999999E-2]
["Indeno(123-cd) pyrene",null,"6-8hrs","None set µg/m3",null,1E-3]
["Naphthalene",null,"6-8hrs","None set µg/m3",null,7.0000000000000007E-2]
["Comments :"]

{"sheet":"Air (CEMS)","index":13,"n_rows":26,"n_cols":14,"rows_kept":26,"cut":false,"hidden":false,"merged":[[26,0,27,12],[11,0,12,0],[5,0,6,12],[8,0,8,12],[9,0,10,0],[9,2,10,2],[9,1,10,1],[9,3,9,4],[9,5,9,6],[9,7,9,8],[9,9,9,10],[9,11,9,12],[12,13,13,13],[12,14,13,14],[12,15,13,15],[10,13,11,15],[24,0,24,12]]}
[{"$f":"+'Cover Page'!$B$29","v":"Annual Performance Report 2025"},null,null,null,null,null,null,null,{"$f":"+'Cover Page'!$B$33","v":"Severn Waste Services Limited"}]
[]
["Emissions to Air (continuously monitored)"]
[null,null,null,null,null,null,null,null,null,null,null,null,null,"Notes:"]
["Summary of monitoring undertaken, standards used and compliance",null,null,null,null,null,null,null,null,null,null,null,null,"Template may require adjustment for any bespoke monitoring requirements of permit"]
["CEMs monitoring is carried out following the quality assurance procedures as stated in BS EN 14181.",null,null,null,null,null,null,null,null,null,null,null,null,"Please check that all default ELV values match those for your plant and edit if necessary!"]
[null,null,null,null,null,null,null,null,null,null,null,null,null,"Report to 1 decimal place"]
[]
["Results of emissions to air that are continuously monitored (maximum and average values for each line) - oxygen reference 11%"]
["Substance","Reference Period","Emission Limit Value","A1",null,"A2",null,"A3",null,"A4",null,"A5"]
[null,null,null,"Max.","Avg.","Max.","Avg.","Max.","Avg.","Max.","Avg.","Max.","Avg."]
["Oxides of nitrogen","Daily mean","180 mg/m3 ",202,180.4]
[null,"½ hourly mean","400 mg/m3 ",273,180.4]
["Particulates","Daily mean","5 mg/m3",3.2,0.9]
[null,"½ hourly mean","30 mg/m3 ",7,0.9]
["Total Organic Carbon ","Daily mean","10 mg/m3 ",1.3,0.6]
[null,"½ hourly mean","20 mg/m3 ",25.3,0.6]
["Hydrogen chloride ","Daily mean","8 mg/m3 ",8,3.2]
[null,"½ hourly mean","60 mg/m3 ",73,3.2]
["Sulphur dioxide","Daily mean","40 mg/m3 ",29.1,0.6]
[null,"½ hourly mean","200 mg/m3 ",448,0.6]
["Carbon monoxide ","Daily mean","50 mg/m3 ",16.899999999999999,4.4000000000000004]
[null,"95%ile 10-min avg *","150 mg/m3 *",70,4.4000000000000004]
[" Ammonia","Daily mean","15 mg/m3 ",3.8,0.8]
["* = delete as appropriate, depending on whether your plant has half-hourly or 10-min CO ELVs\n"]
["Comments :"]

{"sheet":"HCl","index":14,"n_rows":79,"n_cols":17,"rows_kept":79,"cut":false,"hidden":false,"merged":[[12,16,15,18],[51,9,63,9],[66,9,78,9],[4,9,4,14],[4,1,4,3],[4,4,4,6],[48,0,51,6],[47,0,47,6],[6,9,18,9],[21,9,33,9],[36,9,48,9],[3,16,7,18],[9,16,11,18],[18,4,18,6]]}
[{"$f":"+'Cover Page'!$B$29","v":"Annual Performance Report 2025"},null,null,null,{"$f":"+'Cover Page'!$B$33","v":"Severn Waste Services Limited"}]
[]
["Monitoring of Hydrogen Chloride emissions",null,null,"Whole Installation",null,null,"See  Notes in Cell Q3",null,null,{"$f":"+A3","v":"Monitoring of Hydrogen Chloride emissions"},null,null,null,"Per Combustion Line",null,null,"Notes:"]
[null,null,null,null,null,null,null,null,null,null,null,null,null,null,null,null,"User to add logic to complete Whole installation, Table A5:G18. From the data in Per Combustion Line, Table J6:O79, subject to No. of lines installed"]
[{"$f":"+'Cover Page'!C39","v":2025},"1/2 Hourly Reference Periods",null,null,"Daily Reference Periods"]
["mg/Nm3","1/2 hourly HCl ELV","Monthly mean of half-hourly averages","Highest half- hourly average","Daily HCl ELV","Monthly mean of  daily averages","Highest daily average",null,null,{"$f":"+A5","v":2025},"mg/Nm3","Monthly mean of half-hourly averages","Highest half- hourly average","Monthly mean of  daily averages","Highest daily average"]
["Jan",60,3,19,8,3,4,null,null,"A1","Jan"]
["Feb",60,3,7,8,3,5,null,null,null,"Feb"]
["Mar",60,3,7,8,3,4,null,null,null,"Mar",null,null,null,null,null,"Whole Installation table A5:G18:"]
["Apr",60,3,7,8,3,3,null,null,null,"Apr",null,null,null,null,null,"Mean: for 1/2 hourly and daily periods calculate mean of values across all operational combustion lines for the month"]
["May",60,3,21,8,3,4,null,null,null,"May"]
["Jun",60,3,73,8,3,8,null,null,null,"Jun"]
["Jul",60,3,6,8,3,6,null,null,null,"Jul",null,null,null,null,null,"Maximum: for 1/2 hourly and daily periods use the highest value across all operational combustion lines for the month"]
["Aug",60,4,9,8,4,4,null,null,null,"Aug"]
["Sep",60,4,15,8,4,4,null,null,null,"Sep"]
["Oct",60,4,8,8,4,6,null,null,null,"Oct"]
["Nov",60,3,7,8,3,4,null,null,null,"Nov"]
["Dec",60,3,6,8,3,4,null,null,null,"Dec"]
[null,null,null,null,null,null,null,null,null,null,"Annual",{"$f":"AVERAGE(L7:L18)","v":{"$error":"#DIV/0!"}},{"$f":"MAX(M7:M18)","v":0},{"$f":"AVERAGE(N7:N18)","v":{"$error":"#DIV/0!"}},{"$f":"MAX(O7:O18)","v":0}]
[]
[null,null,null,null,null,null,null,null,null,{"$f":"+A5","v":2025},"mg/Nm3","Monthly mean of half-hourly averages","Highest half- hourly average","Monthly mean of  daily averages","Highest daily average"]
[null,null,null,null,null,null,null,null,null,"A2","Jan"]
[null,null,null,null,null,null,null,null,null,null,"Feb"]
[null,null,null,null,null,null,null,null,null,null,"Mar"]
[null,null,null,null,null,null,null,null,null,null,"Apr"]
[null,null,null,null,null,null,null,null,null,null,"May"]
[null,null,null,null,null,null,null,null,null,null,"Jun"]
[null,null,null,null,null,null,null,null,null,null,"Jul"]
[null,null,null,null,null,null,null,null,null,null,"Aug"]
[null,null,null,null,null,null,null,null,null,null,"Sep"]
[null,null,null,null,null,null,null,null,null,null,"Oct"]
[null,null,null,null,null,null,null,null,null,null,"Nov"]
[null,null,null,null,null,null,null,null,null,null,"Dec"]
[null,null,null,null,null,null,null,null,null,null,"Annual",{"$f":"AVERAGE(L22:L33)","v":{"$error":"#DIV/0!"}},{"$f":"MAX(M22:M33)","v":0},{"$f":"AVERAGE(N22:N33)","v":{"$error":"#DIV/0!"}},{"$f":"MAX(O22:O33)","v":0}]
[]
[null,null,null,null,null,null,null,null,null,{"$f":"+A5","v":2025},"mg/Nm3","Monthly mean of half-hourly averages","Highest half- hourly average","Monthly mean of  daily averages","Highest daily average"]
[null,null,null,null,null,null,null,null,null,"A3","Jan"]
[null,null,null,null,null,null,null,null,null,null,"Feb"]
[null,null,null,null,null,null,null,null,null,null,"Mar"]
[null,null,null,null,null,null,null,null,null,null,"Apr"]
[null,null,null,null,null,null,null,null,null,null,"May"]
[null,null,null,null,null,null,null,null,null,null,"Jun"]
[null,null,null,null,null,null,null,null,null,null,"Jul"]
[null,null,null,null,null,null,null,null,null,null,"Aug"]
[null,null,null,null,null,null,null,null,null,null,"Sep"]
[null,null,null,null,null,null,null,null,null,null,"Oct"]
[null,null,null,null,null,null,null,null,null,null,"Nov"]
["Comments :",null,null,null,null,null,null,null,null,null,"Dec"]
["HCl half-hourly exceedance in June occurred during abnormal operations. ",null,null,null,null,null,null,null,null,null,"Annual",{"$f":"AVERAGE(L37:L48)","v":{"$error":"#DIV/0!"}},{"$f":"MAX(M37:M48)","v":0},{"$f":"AVERAGE(N37:N48)","v":{"$error":"#DIV/0!"}},{"$f":"MAX(O37:O48)","v":0}]
[]
[null,null,null,null,null,null,null,null,null,{"$f":"+A5","v":2025},"mg/Nm3","Monthly mean of half-hourly averages","Highest half- hourly average","Monthly mean of  daily averages","Highest daily average"]
[null,null,null,null,null,null,null,null,null,"A4","Jan"]
[null,null,null,null,null,null,null,null,null,null,"Feb"]
[null,null,null,null,null,null,null,null,null,null,"Mar"]
[null,null,null,null,null,null,null,null,null,null,"Apr"]
[null,null,null,null,null,null,null,null,null,null,"May"]
[null,null,null,null,null,null,null,null,null,null,"Jun"]
[null,null,null,null,null,null,null,null,null,null,"Jul"]
[null,null,null,null,null,null,null,null,null,null,"Aug"]
[null,null,null,null,null,null,null,null,null,null,"Sep"]
[null,null,null,null,null,null,null,null,null,null,"Oct"]
[null,null,null,null,null,null,null,null,null,null,"Nov"]
[null,null,null,null,null,null,null,null,null,null,"Dec"]
[null,null,null,null,null,null,null,null,null,null,"Annual",{"$f":"AVERAGE(L52:L63)","v":{"$error":"#DIV/0!"}},{"$f":"MAX(M52:M63)","v":0},{"$f":"AVERAGE(N52:N63)","v":{"$error":"#DIV/0!"}},{"$f":"MAX(O52:O63)","v":0}]
[]
[null,null,null,null,null,null,null,null,null,{"$f":"+A5","v":2025},"mg/Nm3","Monthly mean of half-hourly averages","Highest half- hourly average","Monthly mean of  daily averages","Highest daily average"]
[null,null,null,null,null,null,null,null,null,"A5","Jan"]
[null,null,null,null,null,null,null,null,null,null,"Feb"]
[null,null,null,null,null,null,null,null,null,null,"Mar"]
[null,null,null,null,null,null,null,null,null,null,"Apr"]
[null,null,null,null,null,null,null,null,null,null,"May"]
[null,null,null,null,null,null,null,null,null,null,"Jun"]
[null,null,null,null,null,null,null,null,null,null,"Jul"]
[null,null,null,null,null,null,null,null,null,null,"Aug"]
[null,null,null,null,null,null,null,null,null,null,"Sep"]
[null,null,null,null,null,null,null,null,null,null,"Oct"]
[null,null,null,null,null,null,null,null,null,null,"Nov"]
[null,null,null,null,null,null,null,null,null,null,"Dec"]
[null,null,null,null,null,null,null,null,null,null,"Annual",{"$f":"AVERAGE(L67:L78)","v":{"$error":"#DIV/0!"}},{"$f":"MAX(M67:M78)","v":0},{"$f":"AVERAGE(N67:N78)","v":{"$error":"#DIV/0!"}},{"$f":"MAX(O67:O78)","v":0}]

{"sheet":"SO2","index":15,"n_rows":79,"n_cols":17,"rows_kept":79,"cut":false,"hidden":false,"merged":[[3,16,7,18],[9,16,11,18],[12,16,15,18],[66,9,78,9],[4,1,4,3],[4,4,4,6],[4,9,4,14],[6,9,18,9],[21,9,33,9],[36,9,48,9],[47,0,47,6],[48,0,51,6],[51,9,63,9],[18,4,18,6]]}
[{"$f":"+'Cover Page'!$B$29","v":"Annual Performance Report 2025"},null,null,null,{"$f":"+'Cover Page'!$B$33","v":"Severn Waste Services Limited"}]
[]
["Monitoring of Sulphur dioxide emissions",null,null,"Whole Installation",null,null,"See  Notes in Cell Q3",null,null,{"$f":"+A3","v":"Monitoring of Sulphur dioxide emissions"},null,null,null,"Per Combustion Line",null,null,"Notes:"]
[null,null,null,null,null,null,null,null,null,null,null,null,null,null,null,null,"User to add logic to complete Whole installation, Table A5:G18. From the data in Per Combustion Line, Table J6:O79, subject to No. of lines installed"]
[{"$f":"+'Cover Page'!C39","v":2025},"1/2 Hourly Reference Periods",null,null,"Daily Reference Periods"]
["mg/Nm3","1/2 hourly SO2 ELV","Monthly mean of half-hourly averages","Highest half- hourly average","Daily SO2 ELV","Monthly mean of  daily averages","Highest daily average",null,null,{"$f":"+A5","v":2025},"mg/Nm3","Monthly mean of half-hourly averages","Highest half- hourly average","Monthly mean of  daily averages","Highest daily average"]
["Jan",200,1,12,40,1,2,null,null,"A1","Jan"]
["Feb",200,0,20,40,0,2,null,null,null,"Feb"]
["Mar",200,1,22,40,1,2,null,null,null,"Mar",null,null,null,null,null,"Whole Installation table A5:G18:"]
["Apr",200,1,43,40,1,2,null,null,null,"Apr",null,null,null,null,null,"Mean: for 1/2 hourly and daily periods calculate mean of values across all operational combustion lines for the month"]
["May",200,2,83,40,2,5,null,null,null,"May"]
["Jun",200,1,448,40,1,29,null,null,null,"Jun"]
["Jul",200,0,31,40,0,2,null,null,null,"Jul",null,null,null,null,null,"Maximum: for 1/2 hourly and daily periods use the highest value across all operational combustion lines for the month"]
["Aug",200,0,30,40,0,2,null,null,null,"Aug"]
["Sep",200,0,65,40,0,2,null,null,null,"Sep"]
["Oct",200,0,8,40,0,0,null,null,null,"Oct"]
["Nov",200,0,2,40,0,0,null,null,null,"Nov"]
["Dec",200,0,3,40,0,1,null,null,null,"Dec"]
[null,null,null,null,null,null,null,null,null,null,"Annual",{"$f":"AVERAGE(L7:L18)","v":{"$error":"#DIV/0!"}},{"$f":"MAX(M7:M18)","v":0},{"$f":"AVERAGE(N7:N18)","v":{"$error":"#DIV/0!"}},{"$f":"MAX(O7:O18)","v":0}]
[]
[null,null,null,null,null,null,null,null,null,{"$f":"+A5","v":2025},"mg/Nm3","Monthly mean of half-hourly averages","Highest half- hourly average","Monthly mean of  daily averages","Highest daily average"]
[null,null,null,null,null,null,null,null,null,"A2","Jan"]
[null,null,null,null,null,null,null,null,null,null,"Feb"]
[null,null,null,null,null,null,null,null,null,null,"Mar"]
[null,null,null,null,null,null,null,null,null,null,"Apr"]
[null,null,null,null,null,null,null,null,null,null,"May"]
[null,null,null,null,null,null,null,null,null,null,"Jun"]
[null,null,null,null,null,null,null,null,null,null,"Jul"]
[null,null,null,null,null,null,null,null,null,null,"Aug"]
[null,null,null,null,null,null,null,null,null,null,"Sep"]
[null,null,null,null,null,null,null,null,null,null,"Oct"]
[null,null,null,null,null,null,null,null,null,null,"Nov"]
[null,null,null,null,null,null,null,null,null,null,"Dec"]
[null,null,null,null,null,null,null,null,null,null,"Annual",{"$f":"AVERAGE(L22:L33)","v":{"$error":"#DIV/0!"}},{"$f":"MAX(M22:M33)","v":0},{"$f":"AVERAGE(N22:N33)","v":{"$error":"#DIV/0!"}},{"$f":"MAX(O22:O33)","v":0}]
[]
[null,null,null,null,null,null,null,null,null,{"$f":"+A5","v":2025},"mg/Nm3","Monthly mean of half-hourly averages","Highest half- hourly average","Monthly mean of  daily averages","Highest daily average"]
[null,null,null,null,null,null,null,null,null,"A3","Jan"]
[null,null,null,null,null,null,null,null,null,null,"Feb"]
[null,null,null,null,null,null,null,null,null,null,"Mar"]
[null,null,null,null,null,null,null,null,null,null,"Apr"]
[null,null,null,null,null,null,null,null,null,null,"May"]
[null,null,null,null,null,null,null,null,null,null,"Jun"]
[null,null,null,null,null,null,null,null,null,null,"Jul"]
[null,null,null,null,null,null,null,null,null,null,"Aug"]
[null,null,null,null,null,null,null,null,null,null,"Sep"]
[null,null,null,null,null,null,null,null,null,null,"Oct"]
[null,null,null,null,null,null,null,null,null,null,"Nov"]
["Comments :",null,null,null,null,null,null,null,null,null,"Dec"]
["SO2 half-hourly exceedance in June occurred during abnormal operations. ",null,null,null,null,null,null,null,null,null,"Annual",{"$f":"AVERAGE(L37:L48)","v":{"$error":"#DIV/0!"}},{"$f":"MAX(M37:M48)","v":0},{"$f":"AVERAGE(N37:N48)","v":{"$error":"#DIV/0!"}},{"$f":"MAX(O37:O48)","v":0}]
[]
[null,null,null,null,null,null,null,null,null,{"$f":"+A5","v":2025},"mg/Nm3","Monthly mean of half-hourly averages","Highest half- hourly average","Monthly mean of  daily averages","Highest daily average"]
[null,null,null,null,null,null,null,null,null,"A4","Jan"]
[null,null,null,null,null,null,null,null,null,null,"Feb"]
[null,null,null,null,null,null,null,null,null,null,"Mar"]
[null,null,null,null,null,null,null,null,null,null,"Apr"]
[null,null,null,null,null,null,null,null,null,null,"May"]
[null,null,null,null,null,null,null,null,null,null,"Jun"]
[null,null,null,null,null,null,null,null,null,null,"Jul"]
[null,null,null,null,null,null,null,null,null,null,"Aug"]
[null,null,null,null,null,null,null,null,null,null,"Sep"]
[null,null,null,null,null,null,null,null,null,null,"Oct"]
[null,null,null,null,null,null,null,null,null,null,"Nov"]
[null,null,null,null,null,null,null,null,null,null,"Dec"]
[null,null,null,null,null,null,null,null,null,null,"Annual",{"$f":"AVERAGE(L52:L63)","v":{"$error":"#DIV/0!"}},{"$f":"MAX(M52:M63)","v":0},{"$f":"AVERAGE(N52:N63)","v":{"$error":"#DIV/0!"}},{"$f":"MAX(O52:O63)","v":0}]
[]
[null,null,null,null,null,null,null,null,null,{"$f":"+A5","v":2025},"mg/Nm3","Monthly mean of half-hourly averages","Highest half- hourly average","Monthly mean of  daily averages","Highest daily average"]
[null,null,null,null,null,null,null,null,null,"A5","Jan"]
[null,null,null,null,null,null,null,null,null,null,"Feb"]
[null,null,null,null,null,null,null,null,null,null,"Mar"]
[null,null,null,null,null,null,null,null,null,null,"Apr"]
[null,null,null,null,null,null,null,null,null,null,"May"]
[null,null,null,null,null,null,null,null,null,null,"Jun"]
[null,null,null,null,null,null,null,null,null,null,"Jul"]
[null,null,null,null,null,null,null,null,null,null,"Aug"]
[null,null,null,null,null,null,null,null,null,null,"Sep"]
[null,null,null,null,null,null,null,null,null,null,"Oct"]
[null,null,null,null,null,null,null,null,null,null,"Nov"]
[null,null,null,null,null,null,null,null,null,null,"Dec"]
[null,null,null,null,null,null,null,null,null,null,"Annual",{"$f":"AVERAGE(L67:L78)","v":{"$error":"#DIV/0!"}},{"$f":"MAX(M67:M78)","v":0},{"$f":"AVERAGE(N67:N78)","v":{"$error":"#DIV/0!"}},{"$f":"MAX(O67:O78)","v":0}]

{"sheet":"NOx","index":16,"n_rows":79,"n_cols":17,"rows_kept":79,"cut":false,"hidden":false,"merged":[[3,16,7,18],[9,16,11,18],[12,16,15,18],[66,9,78,9],[4,1,4,3],[4,4,4,6],[4,9,4,14],[6,9,18,9],[21,9,33,9],[36,9,48,9],[47,0,47,6],[48,0,51,6],[51,9,63,9],[18,4,18,6]]}
[{"$f":"+'Cover Page'!$B$29","v":"Annual Performance Report 2025"},null,null,null,{"$f":"+'Cover Page'!$B$33","v":"Severn Waste Services Limited"}]
[]
["Monitoring of Oxides of Nitrogen emissions",null,null,"Whole Installation",null,null,"See  Notes in Cell Q3",null,null,{"$f":"+A3","v":"Monitoring of Oxides of Nitrogen emissions"},null,null,null,"Per Combustion Line",null,null,"Notes:"]
[null,null,null,null,null,null,null,null,null,null,null,null,null,null,null,null,"User to add logic to complete Whole installation, Table A5:G18. From the data in Per Combustion Line, Table J6:O79, subject to No. of lines installed"]
[{"$f":"+'Cover Page'!C39","v":2025},"1/2 Hourly Reference Periods",null,null,"Daily Reference Periods"]
["mg/Nm3","1/2 hourly NOx ELV","Monthly mean of half-hourly averages","Highest half- hourly average","Daily NOx ELV","Monthly mean of  daily averages","Highest daily average",null,null,{"$f":"+A5","v":2025},"mg/Nm3","Monthly mean of half-hourly averages","Highest half- hourly average","Monthly mean of  daily averages","Highest daily average"]
["Jan",400,177,226,180,177,194,null,null,"A1","Jan"]
["Feb",400,180,230,180,180,195,null,null,null,"Feb"]
["Mar",400,185,239,180,185,196,null,null,null,"Mar",null,null,null,null,null,"Whole Installation table A5:G18:"]
["Apr",400,190,232,180,190,201,null,null,null,"Apr",null,null,null,null,null,"Mean: for 1/2 hourly and daily periods calculate mean of values across all operational combustion lines for the month"]
["May",400,186,250,180,186,196,null,null,null,"May"]
["Jun",400,185,236,180,185,200,null,null,null,"Jun"]
["Jul",400,198,230,180,198,201,null,null,null,"Jul",null,null,null,null,null,"Maximum: for 1/2 hourly and daily periods use the highest value across all operational combustion lines for the month"]
["Aug",400,196,228,180,196,202,null,null,null,"Aug"]
["Sep",400,197,236,180,197,209,null,null,null,"Sep"]
["Oct",400,176,200,180,176,176,null,null,null,"Oct"]
["Nov",400,168,201,180,168,169,null,null,null,"Nov"]
["Dec",400,167,237,180,167,191,null,null,null,"Dec"]
[null,null,null,null,null,null,null,null,null,null,"Annual",{"$f":"AVERAGE(L7:L18)","v":{"$error":"#DIV/0!"}},{"$f":"MAX(M7:M18)","v":0},{"$f":"AVERAGE(N7:N18)","v":{"$error":"#DIV/0!"}},{"$f":"MAX(O7:O18)","v":0}]
[]
[null,null,null,null,null,null,null,null,null,{"$f":"+A5","v":2025},"mg/Nm3","Monthly mean of half-hourly averages","Highest half- hourly average","Monthly mean of  daily averages","Highest daily average"]
[null,null,null,null,null,null,null,null,null,"A2","Jan"]
[null,null,null,null,null,null,null,null,null,null,"Feb"]
[null,null,null,null,null,null,null,null,null,null,"Mar"]
[null,null,null,null,null,null,null,null,null,null,"Apr"]
[null,null,null,null,null,null,null,null,null,null,"May"]
[null,null,null,null,null,null,null,null,null,null,"Jun"]
[null,null,null,null,null,null,null,null,null,null,"Jul"]
[null,null,null,null,null,null,null,null,null,null,"Aug"]
[null,null,null,null,null,null,null,null,null,null,"Sep"]
[null,null,null,null,null,null,null,null,null,null,"Oct"]
[null,null,null,null,null,null,null,null,null,null,"Nov"]
[null,null,null,null,null,null,null,null,null,null,"Dec"]
[null,null,null,null,null,null,null,null,null,null,"Annual",{"$f":"AVERAGE(L22:L33)","v":{"$error":"#DIV/0!"}},{"$f":"MAX(M22:M33)","v":0},{"$f":"AVERAGE(N22:N33)","v":{"$error":"#DIV/0!"}},{"$f":"MAX(O22:O33)","v":0}]
[]
[null,null,null,null,null,null,null,null,null,{"$f":"+A5","v":2025},"mg/Nm3","Monthly mean of half-hourly averages","Highest half- hourly average","Monthly mean of  daily averages","Highest daily average"]
[null,null,null,null,null,null,null,null,null,"A3","Jan"]
[null,null,null,null,null,null,null,null,null,null,"Feb"]
[null,null,null,null,null,null,null,null,null,null,"Mar"]
[null,null,null,null,null,null,null,null,null,null,"Apr"]
[null,null,null,null,null,null,null,null,null,null,"May"]
[null,null,null,null,null,null,null,null,null,null,"Jun"]
[null,null,null,null,null,null,null,null,null,null,"Jul"]
[null,null,null,null,null,null,null,null,null,null,"Aug"]
[null,null,null,null,null,null,null,null,null,null,"Sep"]
[null,null,null,null,null,null,null,null,null,null,"Oct"]
[null,null,null,null,null,null,null,null,null,null,"Nov"]
["Comments :",null,null,null,null,null,null,null,null,null,"Dec"]
[null,null,null,null,null,null,null,null,null,null,"Annual",{"$f":"AVERAGE(L37:L48)","v":{"$error":"#DIV/0!"}},{"$f":"MAX(M37:M48)","v":0},{"$f":"AVERAGE(N37:N48)","v":{"$error":"#DIV/0!"}},{"$f":"MAX(O37:O48)","v":0}]
[]
[null,null,null,null,null,null,null,null,null,{"$f":"+A5","v":2025},"mg/Nm3","Monthly mean of half-hourly averages","Highest half- hourly average","Monthly mean of  daily averages","Highest daily average"]
[null,null,null,null,null,null,null,null,null,"A4","Jan"]
[null,null,null,null,null,null,null,null,null,null,"Feb"]
[null,null,null,null,null,null,null,null,null,null,"Mar"]
[null,null,null,null,null,null,null,null,null,null,"Apr"]
[null,null,null,null,null,null,null,null,null,null,"May"]
[null,null,null,null,null,null,null,null,null,null,"Jun"]
[null,null,null,null,null,null,null,null,null,null,"Jul"]
[null,null,null,null,null,null,null,null,null,null,"Aug"]
[null,null,null,null,null,null,null,null,null,null,"Sep"]
[null,null,null,null,null,null,null,null,null,null,"Oct"]
[null,null,null,null,null,null,null,null,null,null,"Nov"]
[null,null,null,null,null,null,null,null,null,null,"Dec"]
[null,null,null,null,null,null,null,null,null,null,"Annual",{"$f":"AVERAGE(L52:L63)","v":{"$error":"#DIV/0!"}},{"$f":"MAX(M52:M63)","v":0},{"$f":"AVERAGE(N52:N63)","v":{"$error":"#DIV/0!"}},{"$f":"MAX(O52:O63)","v":0}]
[]
[null,null,null,null,null,null,null,null,null,{"$f":"+A5","v":2025},"mg/Nm3","Monthly mean of half-hourly averages","Highest half- hourly average","Monthly mean of  daily averages","Highest daily average"]
[null,null,null,null,null,null,null,null,null,"A5","Jan"]
[null,null,null,null,null,null,null,null,null,null,"Feb"]
[null,null,null,null,null,null,null,null,null,null,"Mar"]
[null,null,null,null,null,null,null,null,null,null,"Apr"]
[null,null,null,null,null,null,null,null,null,null,"May"]
[null,null,null,null,null,null,null,null,null,null,"Jun"]
[null,null,null,null,null,null,null,null,null,null,"Jul"]
[null,null,null,null,null,null,null,null,null,null,"Aug"]
[null,null,null,null,null,null,null,null,null,null,"Sep"]
[null,null,null,null,null,null,null,null,null,null,"Oct"]
[null,null,null,null,null,null,null,null,null,null,"Nov"]
[null,null,null,null,null,null,null,null,null,null,"Dec"]
[null,null,null,null,null,null,null,null,null,null,"Annual",{"$f":"AVERAGE(L67:L78)","v":{"$error":"#DIV/0!"}},{"$f":"MAX(M67:M78)","v":0},{"$f":"AVERAGE(N67:N78)","v":{"$error":"#DIV/0!"}},{"$f":"MAX(O67:O78)","v":0}]

{"sheet":"TOC","index":17,"n_rows":79,"n_cols":17,"rows_kept":79,"cut":false,"hidden":false,"merged":[[3,16,7,18],[9,16,11,18],[12,16,15,18],[66,9,78,9],[4,1,4,3],[4,4,4,6],[4,9,4,14],[6,9,18,9],[21,9,33,9],[36,9,48,9],[47,0,47,6],[48,0,51,6],[51,9,63,9]]}
[{"$f":"+'Cover Page'!$B$29","v":"Annual Performance Report 2025"},null,null,null,{"$f":"+'Cover Page'!$B$33","v":"Severn Waste Services Limited"}]
[]
["Monitoring of Total organic carbon emissions",null,null,"Whole Installation",null,null,"See  Notes in Cell Q3",null,null,{"$f":"+A3","v":"Monitoring of Total organic carbon emissions"},null,null,null,"Per Combustion Line",null,null,"Notes:"]
[null,null,null,null,null,null,null,null,null,null,null,null,null,null,null,null,"User to add logic to complete Whole installation, Table A5:G18. From the data in Per Combustion Line, Table J6:O79, subject to No. of lines installed"]
[{"$f":"+'Cover Page'!C39","v":2025},"1/2 Hourly Reference Periods",null,null,"Daily Reference Periods"]
["mg/Nm3","1/2 hourly TOC ELV","Monthly mean of half-hourly averages","Highest half- hourly average","Daily TOC ELV","Monthly mean of  daily averages","Highest daily average",null,null,{"$f":"+A5","v":2025},"mg/Nm3","Monthly mean of half-hourly averages","Highest half- hourly average","Monthly mean of  daily averages","Highest daily average"]
["Jan",20,1,14,10,1,1,null,null,"A1","Jan"]
["Feb",20,1,6,10,1,1,null,null,null,"Feb"]
["Mar",20,0,13,10,0,1,null,null,null,"Mar",null,null,null,null,null,"Whole Installation table A5:G18:"]
["Apr",20,0,15,10,0,1,null,null,null,"Apr",null,null,null,null,null,"Mean: for 1/2 hourly and daily periods calculate mean of values across all operational combustion lines for the month"]
["May",20,0,11,10,0,1,null,null,null,"May"]
["Jun",20,0,9,10,0,1,null,null,null,"Jun"]
["Jul",20,1,5,10,1,1,null,null,null,"Jul",null,null,null,null,null,"Maximum: for 1/2 hourly and daily periods use the highest value across all operational combustion lines for the month"]
["Aug",20,0,3,10,0,1,null,null,null,"Aug"]
["Sep",20,1,6,10,1,1,null,null,null,"Sep"]
["Oct",20,1,25,10,1,1,null,null,null,"Oct"]
["Nov",20,1,6,10,1,1,null,null,null,"Nov"]
["Dec",20,0,9,10,0,1,null,null,null,"Dec"]
[null,null,null,null,null,null,null,null,null,null,"Annual",{"$f":"AVERAGE(L7:L18)","v":{"$error":"#DIV/0!"}},{"$f":"MAX(M7:M18)","v":0},{"$f":"AVERAGE(N7:N18)","v":{"$error":"#DIV/0!"}},{"$f":"MAX(O7:O18)","v":0}]
[]
[null,null,null,null,null,null,null,null,null,{"$f":"+A5","v":2025},"mg/Nm3","Monthly mean of half-hourly averages","Highest half- hourly average","Monthly mean of  daily averages","Highest daily average"]
[null,null,null,null,null,null,null,null,null,"A2","Jan"]
[null,null,null,null,null,null,null,null,null,null,"Feb"]
[null,null,null,null,null,null,null,null,null,null,"Mar"]
[null,null,null,null,null,null,null,null,null,null,"Apr"]
[null,null,null,null,null,null,null,null,null,null,"May"]
[null,null,null,null,null,null,null,null,null,null,"Jun"]
[null,null,null,null,null,null,null,null,null,null,"Jul"]
[null,null,null,null,null,null,null,null,null,null,"Aug"]
[null,null,null,null,null,null,null,null,null,null,"Sep"]
[null,null,null,null,null,null,null,null,null,null,"Oct"]
[null,null,null,null,null,null,null,null,null,null,"Nov"]
[null,null,null,null,null,null,null,null,null,null,"Dec"]
[null,null,null,null,null,null,null,null,null,null,"Annual",{"$f":"AVERAGE(L22:L33)","v":{"$error":"#DIV/0!"}},{"$f":"MAX(M22:M33)","v":0},{"$f":"AVERAGE(N22:N33)","v":{"$error":"#DIV/0!"}},{"$f":"MAX(O22:O33)","v":0}]
[]
[null,null,null,null,null,null,null,null,null,{"$f":"+A5","v":2025},"mg/Nm3","Monthly mean of half-hourly averages","Highest half- hourly average","Monthly mean of  daily averages","Highest daily average"]
[null,null,null,null,null,null,null,null,null,"A3","Jan"]
[null,null,null,null,null,null,null,null,null,null,"Feb"]
[null,null,null,null,null,null,null,null,null,null,"Mar"]
[null,null,null,null,null,null,null,null,null,null,"Apr"]
[null,null,null,null,null,null,null,null,null,null,"May"]
[null,null,null,null,null,null,null,null,null,null,"Jun"]
[null,null,null,null,null,null,null,null,null,null,"Jul"]
[null,null,null,null,null,null,null,null,null,null,"Aug"]
[null,null,null,null,null,null,null,null,null,null,"Sep"]
[null,null,null,null,null,null,null,null,null,null,"Oct"]
[null,null,null,null,null,null,null,null,null,null,"Nov"]
["Comments :",null,null,null,null,null,null,null,null,null,"Dec"]
["Schedule 5 submitted for the TOC half hourly exceedance in October.",null,null,null,null,null,null,null,null,null,"Annual",{"$f":"AVERAGE(L37:L48)","v":{"$error":"#DIV/0!"}},{"$f":"MAX(M37:M48)","v":0},{"$f":"AVERAGE(N37:N48)","v":{"$error":"#DIV/0!"}},{"$f":"MAX(O37:O48)","v":0}]
[]
[null,null,null,null,null,null,null,null,null,{"$f":"+A5","v":2025},"mg/Nm3","Monthly mean of half-hourly averages","Highest half- hourly average","Monthly mean of  daily averages","Highest daily average"]
[null,null,null,null,null,null,null,null,null,"A4","Jan"]
[null,null,null,null,null,null,null,null,null,null,"Feb"]
[null,null,null,null,null,null,null,null,null,null,"Mar"]
[null,null,null,null,null,null,null,null,null,null,"Apr"]
[null,null,null,null,null,null,null,null,null,null,"May"]
[null,null,null,null,null,null,null,null,null,null,"Jun"]
[null,null,null,null,null,null,null,null,null,null,"Jul"]
[null,null,null,null,null,null,null,null,null,null,"Aug"]
[null,null,null,null,null,null,null,null,null,null,"Sep"]
[null,null,null,null,null,null,null,null,null,null,"Oct"]
[null,null,null,null,null,null,null,null,null,null,"Nov"]
[null,null,null,null,null,null,null,null,null,null,"Dec"]
[null,null,null,null,null,null,null,null,null,null,"Annual",{"$f":"AVERAGE(L52:L63)","v":{"$error":"#DIV/0!"}},{"$f":"MAX(M52:M63)","v":0},{"$f":"AVERAGE(N52:N63)","v":{"$error":"#DIV/0!"}},{"$f":"MAX(O52:O63)","v":0}]
[]
[null,null,null,null,null,null,null,null,null,{"$f":"+A5","v":2025},"mg/Nm3","Monthly mean of half-hourly averages","Highest half- hourly average","Monthly mean of  daily averages","Highest daily average"]
[null,null,null,null,null,null,null,null,null,"A5","Jan"]
[null,null,null,null,null,null,null,null,null,null,"Feb"]
[null,null,null,null,null,null,null,null,null,null,"Mar"]
[null,null,null,null,null,null,null,null,null,null,"Apr"]
[null,null,null,null,null,null,null,null,null,null,"May"]
[null,null,null,null,null,null,null,null,null,null,"Jun"]
[null,null,null,null,null,null,null,null,null,null,"Jul"]
[null,null,null,null,null,null,null,null,null,null,"Aug"]
[null,null,null,null,null,null,null,null,null,null,"Sep"]
[null,null,null,null,null,null,null,null,null,null,"Oct"]
[null,null,null,null,null,null,null,null,null,null,"Nov"]
[null,null,null,null,null,null,null,null,null,null,"Dec"]
[null,null,null,null,null,null,null,null,null,null,"Annual",{"$f":"AVERAGE(L67:L78)","v":{"$error":"#DIV/0!"}},{"$f":"MAX(M67:M78)","v":0},{"$f":"AVERAGE(N67:N78)","v":{"$error":"#DIV/0!"}},{"$f":"MAX(O67:O78)","v":0}]

{"sheet":"Particulates","index":18,"n_rows":79,"n_cols":17,"rows_kept":79,"cut":false,"hidden":false,"merged":[[4,16,8,18],[10,16,12,18],[13,16,16,18],[66,9,78,9],[4,1,4,3],[4,4,4,6],[4,9,4,14],[6,9,18,9],[21,9,33,9],[36,9,48,9],[47,0,47,6],[48,0,51,6],[51,9,63,9],[18,4,18,6]]}
[{"$f":"+'Cover Page'!$B$29","v":"Annual Performance Report 2025"},null,null,null,{"$f":"+'Cover Page'!$B$33","v":"Severn Waste Services Limited"}]
[]
["Monitoring of Particulate matter emissions",null,null,"Whole Installation",null,null,"See  Notes in Cell Q3",null,null,{"$f":"+A3","v":"Monitoring of Particulate matter emissions"},null,null,null,"Per Combustion Line",null,null,"Notes:"]
[]
[{"$f":"+'Cover Page'!C39","v":2025},"1/2 Hourly Reference Periods",null,null,"Daily Reference Periods",null,null,null,null,null,null,null,null,null,null,null,"User to add logic to complete Whole installation, Table A5:G18. From the data in Per Combustion Line, Table J6:O79, subject to No. of lines installed"]
["mg/Nm3","1/2 hourly PM ELV","Monthly mean of half-hourly averages","Highest half- hourly average","Daily PM ELV","Monthly mean of  daily averages","Highest daily average",null,null,{"$f":"+A5","v":2025},"mg/Nm3","Monthly mean of half-hourly averages","Highest half- hourly average","Monthly mean of  daily averages","Highest daily average"]
["Jan",30,2,7,5,2,3,null,null,"A1","Jan"]
["Feb",30,0,1,5,0,1,null,null,null,"Feb"]
["Mar",30,1,2,5,1,1,null,null,null,"Mar"]
["Apr",30,1,2,5,1,1,null,null,null,"Apr",null,null,null,null,null,"Whole Installation table A5:G18:"]
["May",30,0,1,5,0,1,null,null,null,"May",null,null,null,null,null,"Mean: for 1/2 hourly and daily periods calculate mean of values across all operational combustion lines for the month"]
["Jun",30,0,1,5,0,1,null,null,null,"Jun"]
["Jul",30,0,2,5,0,0,null,null,null,"Jul"]
["Aug",30,0,2,5,0,1,null,null,null,"Aug",null,null,null,null,null,"Maximum: for 1/2 hourly and daily periods use the highest value across all operational combustion lines for the month"]
["Sep",30,1,1,5,1,1,null,null,null,"Sep"]
["Oct",30,1,3,5,1,2,null,null,null,"Oct"]
["Nov",30,2,4,5,2,2,null,null,null,"Nov"]
["Dec",30,1,3,5,1,2,null,null,null,"Dec"]
[null,null,null,null,null,null,null,null,null,null,"Annual",{"$f":"AVERAGE(L7:L18)","v":{"$error":"#DIV/0!"}},{"$f":"MAX(M7:M18)","v":0},{"$f":"AVERAGE(N7:N18)","v":{"$error":"#DIV/0!"}},{"$f":"MAX(O7:O18)","v":0}]
[]
[null,null,null,null,null,null,null,null,null,{"$f":"+A5","v":2025},"mg/Nm3","Monthly mean of half-hourly averages","Highest half- hourly average","Monthly mean of  daily averages","Highest daily average"]
[null,null,null,null,null,null,null,null,null,"A2","Jan"]
[null,null,null,null,null,null,null,null,null,null,"Feb"]
[null,null,null,null,null,null,null,null,null,null,"Mar"]
[null,null,null,null,null,null,null,null,null,null,"Apr"]
[null,null,null,null,null,null,null,null,null,null,"May"]
[null,null,null,null,null,null,null,null,null,null,"Jun"]
[null,null,null,null,null,null,null,null,null,null,"Jul"]
[null,null,null,null,null,null,null,null,null,null,"Aug"]
[null,null,null,null,null,null,null,null,null,null,"Sep"]
[null,null,null,null,null,null,null,null,null,null,"Oct"]
[null,null,null,null,null,null,null,null,null,null,"Nov"]
[null,null,null,null,null,null,null,null,null,null,"Dec"]
[null,null,null,null,null,null,null,null,null,null,"Annual",{"$f":"AVERAGE(L22:L33)","v":{"$error":"#DIV/0!"}},{"$f":"MAX(M22:M33)","v":0},{"$f":"AVERAGE(N22:N33)","v":{"$error":"#DIV/0!"}},{"$f":"MAX(O22:O33)","v":0}]
[]
[null,null,null,null,null,null,null,null,null,{"$f":"+A5","v":2025},"mg/Nm3","Monthly mean of half-hourly averages","Highest half- hourly average","Monthly mean of  daily averages","Highest daily average"]
[null,null,null,null,null,null,null,null,null,"A3","Jan"]
[null,null,null,null,null,null,null,null,null,null,"Feb"]
[null,null,null,null,null,null,null,null,null,null,"Mar"]
[null,null,null,null,null,null,null,null,null,null,"Apr"]
[null,null,null,null,null,null,null,null,null,null,"May"]
[null,null,null,null,null,null,null,null,null,null,"Jun"]
[null,null,null,null,null,null,null,null,null,null,"Jul"]
[null,null,null,null,null,null,null,null,null,null,"Aug"]
[null,null,null,null,null,null,null,null,null,null,"Sep"]
[null,null,null,null,null,null,null,null,null,null,"Oct"]
[null,null,null,null,null,null,null,null,null,null,"Nov"]
["Comments :",null,null,null,null,null,null,null,null,null,"Dec"]
[null,null,null,null,null,null,null,null,null,null,"Annual",{"$f":"AVERAGE(L37:L48)","v":{"$error":"#DIV/0!"}},{"$f":"MAX(M37:M48)","v":0},{"$f":"AVERAGE(N37:N48)","v":{"$error":"#DIV/0!"}},{"$f":"MAX(O37:O48)","v":0}]
[]
[null,null,null,null,null,null,null,null,null,{"$f":"+A5","v":2025},"mg/Nm3","Monthly mean of half-hourly averages","Highest half- hourly average","Monthly mean of  daily averages","Highest daily average"]
[null,null,null,null,null,null,null,null,null,"A4","Jan"]
[null,null,null,null,null,null,null,null,null,null,"Feb"]
[null,null,null,null,null,null,null,null,null,null,"Mar"]
[null,null,null,null,null,null,null,null,null,null,"Apr"]
[null,null,null,null,null,null,null,null,null,null,"May"]
[null,null,null,null,null,null,null,null,null,null,"Jun"]
[null,null,null,null,null,null,null,null,null,null,"Jul"]
[null,null,null,null,null,null,null,null,null,null,"Aug"]
[null,null,null,null,null,null,null,null,null,null,"Sep"]
[null,null,null,null,null,null,null,null,null,null,"Oct"]
[null,null,null,null,null,null,null,null,null,null,"Nov"]
[null,null,null,null,null,null,null,null,null,null,"Dec"]
[null,null,null,null,null,null,null,null,null,null,"Annual",{"$f":"AVERAGE(L52:L63)","v":{"$error":"#DIV/0!"}},{"$f":"MAX(M52:M63)","v":0},{"$f":"AVERAGE(N52:N63)","v":{"$error":"#DIV/0!"}},{"$f":"MAX(O52:O63)","v":0}]
[]
[null,null,null,null,null,null,null,null,null,{"$f":"+A5","v":2025},"mg/Nm3","Monthly mean of half-hourly averages","Highest half- hourly average","Monthly mean of  daily averages","Highest daily average"]
[null,null,null,null,null,null,null,null,null,"A5","Jan"]
[null,null,null,null,null,null,null,null,null,null,"Feb"]
[null,null,null,null,null,null,null,null,null,null,"Mar"]
[null,null,null,null,null,null,null,null,null,null,"Apr"]
[null,null,null,null,null,null,null,null,null,null,"May"]
[null,null,null,null,null,null,null,null,null,null,"Jun"]
[null,null,null,null,null,null,null,null,null,null,"Jul"]
[null,null,null,null,null,null,null,null,null,null,"Aug"]
[null,null,null,null,null,null,null,null,null,null,"Sep"]
[null,null,null,null,null,null,null,null,null,null,"Oct"]
[null,null,null,null,null,null,null,null,null,null,"Nov"]
[null,null,null,null,null,null,null,null,null,null,"Dec"]
[null,null,null,null,null,null,null,null,null,null,"Annual",{"$f":"AVERAGE(L67:L78)","v":{"$error":"#DIV/0!"}},{"$f":"MAX(M67:M78)","v":0},{"$f":"AVERAGE(N67:N78)","v":{"$error":"#DIV/0!"}},{"$f":"MAX(O67:O78)","v":0}]

{"sheet":"CO 95% 10 min","index":19,"n_rows":80,"n_cols":19,"rows_kept":80,"cut":false,"hidden":false,"merged":[[4,18,8,20],[10,18,12,20],[13,18,16,20],[67,10,79,10],[5,1,5,4],[5,5,5,7],[5,10,5,16],[7,10,19,10],[22,10,34,10],[37,10,49,10],[48,0,48,7],[49,0,52,7],[52,10,64,10]]}
[{"$f":"+'Cover Page'!$B$29","v":"Annual Performance Report 2025"},null,null,null,{"$f":"+'Cover Page'!$B$33","v":"Severn Waste Services Limited"}]
[]
["Monitoring of Carbon Monoxide (10-minute avg)",null,null,null,"Whole Installation",null,null,"See  Notes in Cell S3",null,{"$f":"+A3","v":"Monitoring of Carbon Monoxide (10-minute avg)"},null,null,null,null,"Per Combustion Line",null,"Notes:",null,"Notes:"]
[]
[null,null,null,null,null,null,null,null,null,null,null,null,null,null,null,null,null,null,"User to add logic to complete Whole installation, Table A5:H18. From the data in Per Combustion Line, Table K6:Q79, subject to No. of lines installed"]
[{"$f":"+'Cover Page'!C39","v":2025},"10-minute Reference Periods",null,null,null,"Daily Reference Periods"]
["mg/Nm3","95%ile 10-min avg CO ELV","Highest daily 95%ile 10-min average","Monthly mean of 10-min averages","Highest 10-min average","Daily CO ELV","Monthly mean of  daily averages","Highest daily average",null,null,{"$f":"+A6","v":2025},"mg/Nm3","Highest daily 95%ile 10-min average","Monthly mean of 10-min averages","Highest 10-min average","Monthly mean of  daily averages","Highest daily average"]
["Jan",150,37,6,696,50,6,10,null,null,"A1","Jan"]
["Feb",{"$f":"+B8","v":150},22,4,431,{"$f":"+F8","v":50},4,10,null,null,null,"Feb"]
["Mar",{"$f":"+B9","v":150},23,5,636,{"$f":"+F9","v":50},5,13,null,null,null,"Mar",null,null,null,null,null,null,"Whole Installation table A5:H18:"]
["Apr",150,25,5,753,50,5,10,null,null,null,"Apr",null,null,null,null,null,null,"Mean: for 10-min and daily periods use average of all operational combustion lines."]
["May",150,12,5,1364,50,5,15,null,null,null,"May"]
["Jun",150,31,4,557,50,4,9,null,null,null,"Jun"]
["Jul",150,26,4,876,50,4,8,null,null,null,"Jul",null,null,null,null,null,null,"Maximum: for 10-min and daily periods use the highest of all operational combustion lines in any month."]
["Aug",150,5,3,350,50,3,7,null,null,null,"Aug"]
["Sep",150,7,2,492,50,2,5,null,null,null,"Sep"]
["Oct",150,19,3,1200,50,3,16,null,null,null,"Oct"]
["Nov",150,70,5,851,50,5,17,null,null,null,"Nov"]
["Dec",150,44,6,729,50,6,17,null,null,null,"Dec"]
[null,null,null,null,null,null,null,null,null,null,null,"Annual",{"$f":"AVERAGE(M8:M19)","v":{"$error":"#DIV/0!"}},null,{"$f":"MAX(O8:O19)","v":0},{"$f":"AVERAGE(P8:P19)","v":{"$error":"#DIV/0!"}},{"$f":"MAX(Q8:Q19)","v":0}]
[]
[null,null,null,null,null,null,null,null,null,null,{"$f":"+A6","v":2025},"mg/Nm3","Highest daily 95%ile 10-min average","Monthly mean of 10-min averages","Highest 10-min average","Monthly mean of  daily averages","Highest daily average"]
[null,null,null,null,null,null,null,null,null,null,"A2","Jan"]
[null,null,null,null,null,null,null,null,null,null,null,"Feb"]
[null,null,null,null,null,null,null,null,null,null,null,"Mar"]
[null,null,null,null,null,null,null,null,null,null,null,"Apr"]
[null,null,null,null,null,null,null,null,null,null,null,"May"]
[null,null,null,null,null,null,null,null,null,null,null,"Jun"]
[null,null,null,null,null,null,null,null,null,null,null,"Jul"]
[null,null,null,null,null,null,null,null,null,null,null,"Aug"]
[null,null,null,null,null,null,null,null,null,null,null,"Sep"]
[null,null,null,null,null,null,null,null,null,null,null,"Oct"]
[null,null,null,null,null,null,null,null,null,null,null,"Nov"]
[null,null,null,null,null,null,null,null,null,null,null,"Dec"]
[null,null,null,null,null,null,null,null,null,null,null,"Annual",{"$f":"AVERAGE(M23:M34)","v":{"$error":"#DIV/0!"}},null,{"$f":"MAX(O23:O34)","v":0},{"$f":"AVERAGE(P23:P34)","v":{"$error":"#DIV/0!"}},{"$f":"MAX(Q23:Q34)","v":0}]
[]
[null,null,null,null,null,null,null,null,null,null,{"$f":"+A6","v":2025},"mg/Nm3","Highest daily 95%ile 10-min average","Monthly mean of 10-min averages","Highest 10-min average","Monthly mean of  daily averages","Highest daily average"]
[null,null,null,null,null,null,null,null,null,null,"A3","Jan"]
[null,null,null,null,null,null,null,null,null,null,null,"Feb"]
[null,null,null,null,null,null,null,null,null,null,null,"Mar"]
[null,null,null,null,null,null,null,null,null,null,null,"Apr"]
[null,null,null,null,null,null,null,null,null,null,null,"May"]
[null,null,null,null,null,null,null,null,null,null,null,"Jun"]
[null,null,null,null,null,null,null,null,null,null,null,"Jul"]
[null,null,null,null,null,null,null,null,null,null,null,"Aug"]
[null,null,null,null,null,null,null,null,null,null,null,"Sep"]
[null,null,null,null,null,null,null,null,null,null,null,"Oct"]
[null,null,null,null,null,null,null,null,null,null,null,"Nov"]
["Comments :",null,null,null,null,null,null,null,null,null,null,"Dec"]
["Environment Agency explanatory note: The 10-minute average ELV is based on the “95th percentile”. In this case this means that 95% of the 10 minute averages in the relevant 24-hour period (i.e. 137) must be below 150 mg/Nm3, and 5% (i.e. 7) are allowed to be any value above 150 mg/Nm3. Whilst we expect operators to minimise CO emissions at all times, it is perfectly acceptable for the value of the maximum 10-minute average to be above 150 mg/Nm3, provided the 95th percentile ELV has been met for that period. ",null,null,null,null,null,null,null,null,null,null,"Annual",{"$f":"AVERAGE(M38:M49)","v":{"$error":"#DIV/0!"}},null,{"$f":"MAX(O38:O49)","v":0},{"$f":"AVERAGE(P38:P49)","v":{"$error":"#DIV/0!"}},{"$f":"MAX(Q38:Q49)","v":0}]
[]
[null,null,null,null,null,null,null,null,null,null,{"$f":"+A6","v":2025},"mg/Nm3","Highest daily 95%ile 10-min average","Monthly mean of 10-min averages","Highest 10-min average","Monthly mean of  daily averages","Highest daily average"]
[null,null,null,null,null,null,null,null,null,null,"A4","Jan"]
[null,null,null,null,null,null,null,null,null,null,null,"Feb"]
[null,null,null,null,null,null,null,null,null,null,null,"Mar"]
[null,null,null,null,null,null,null,null,null,null,null,"Apr"]
[null,null,null,null,null,null,null,null,null,null,null,"May"]
[null,null,null,null,null,null,null,null,null,null,null,"Jun"]
[null,null,null,null,null,null,null,null,null,null,null,"Jul"]
[null,null,null,null,null,null,null,null,null,null,null,"Aug"]
[null,null,null,null,null,null,null,null,null,null,null,"Sep"]
[null,null,null,null,null,null,null,null,null,null,null,"Oct"]
[null,null,null,null,null,null,null,null,null,null,null,"Nov"]
[null,null,null,null,null,null,null,null,null,null,null,"Dec"]
[null,null,null,null,null,null,null,null,null,null,null,"Annual",{"$f":"AVERAGE(M53:M64)","v":{"$error":"#DIV/0!"}},null,{"$f":"MAX(O53:O64)","v":0},{"$f":"AVERAGE(P53:P64)","v":{"$error":"#DIV/0!"}},{"$f":"MAX(Q53:Q64)","v":0}]
[]
[null,null,null,null,null,null,null,null,null,null,{"$f":"+A6","v":2025},"mg/Nm3","95%ile 10-min avg maximum","Monthly CO 10-min avg mean","10-min avg maximum","Monthly daily mean","Monthly daily maximum"]
[null,null,null,null,null,null,null,null,null,null,"A5","Jan"]
[null,null,null,null,null,null,null,null,null,null,null,"Feb"]
[null,null,null,null,null,null,null,null,null,null,null,"Mar"]
[null,null,null,null,null,null,null,null,null,null,null,"Apr"]
[null,null,null,null,null,null,null,null,null,null,null,"May"]
[null,null,null,null,null,null,null,null,null,null,null,"Jun"]
[null,null,null,null,null,null,null,null,null,null,null,"Jul"]
[null,null,null,null,null,null,null,null,null,null,null,"Aug"]
[null,null,null,null,null,null,null,null,null,null,null,"Sep"]
[null,null,null,null,null,null,null,null,null,null,null,"Oct"]
[null,null,null,null,null,null,null,null,null,null,null,"Nov"]
[null,null,null,null,null,null,null,null,null,null,null,"Dec"]
[null,null,null,null,null,null,null,null,null,null,null,"Annual",{"$f":"AVERAGE(M68:M79)","v":{"$error":"#DIV/0!"}},null,{"$f":"MAX(O68:O79)","v":0},{"$f":"AVERAGE(P68:P79)","v":{"$error":"#DIV/0!"}},{"$f":"MAX(Q68:Q79)","v":0}]

{"sheet":"NH3","index":20,"n_rows":79,"n_cols":17,"rows_kept":79,"cut":false,"hidden":false,"merged":[[3,16,7,18],[9,16,11,18],[12,16,15,18],[66,9,78,9],[4,1,4,3],[4,4,4,6],[4,9,4,14],[6,9,18,9],[21,9,33,9],[36,9,48,9],[47,0,47,6],[48,0,51,6],[51,9,63,9],[18,4,18,6]]}
[{"$f":"+'Cover Page'!$B$29","v":"Annual Performance Report 2025"},null,null,null,{"$f":"+'Cover Page'!$B$33","v":"Severn Waste Services Limited"}]
[]
["Monitoring of Ammnonia emissions ",null,null,"Whole Installation",null,null,"See  Notes in Cell Q3",null,null,{"$f":"+A3","v":"Monitoring of Ammnonia emissions "},null,null,null,"Per Combustion Line",null,null,"Notes:"]
[null,null,null,null,null,null,null,null,null,null,null,null,null,null,null,null,"User to add logic to complete Whole installation, Table A5:G18. From the data in Per Combustion Line, Table J6:O79, subject to No. of lines installed"]
[{"$f":"+'Cover Page'!C39","v":2025},"1/2 Hourly Reference Periods",null,null,"Daily Reference Periods"]
["mg/Nm3","1/2 hourly NH3 ELV","Monthly mean of half-hourly averages","Highest half- hourly average","Daily NH3 ELV","Monthly mean of  daily averages","Highest daily average",null,null,{"$f":"+A5","v":2025},"mg/Nm3","Monthly mean of half-hourly averages","Highest half- hourly average","Monthly mean of  daily averages","Highest daily average"]
["Jan","None",1,2,15,1,1,null,null,"A1","Jan"]
["Feb",{"$f":"+B7","v":"None"},1,2,15,1,1,null,null,null,"Feb"]
["Mar",{"$f":"+B8","v":"None"},1,2,15,1,1,null,null,null,"Mar",null,null,null,null,null,"Whole Installation table A5:G18:"]
["Apr","None",1,3,15,1,1,null,null,null,"Apr",null,null,null,null,null,"Mean: for 1/2 hourly and daily periods calculate mean of values across all operational combustion lines for the month"]
["May","None",1,3,15,1,1,null,null,null,"May"]
["Jun","None",1,9,15,1,1,null,null,null,"Jun"]
["Jul","None",1,2,15,1,1,null,null,null,"Jul",null,null,null,null,null,"Maximum: for 1/2 hourly and daily periods use the highest value across all operational combustion lines for the month"]
["Aug","None",1,1,15,1,1,null,null,null,"Aug"]
["Sep","None",1,2,15,1,1,null,null,null,"Sep"]
["Oct","None",1,2,15,1,1,null,null,null,"Oct"]
["Nov","None",1,2,15,1,1,null,null,null,"Nov"]
["Dec","None",0,2,15,0,1,null,null,null,"Dec"]
[null,null,null,null,null,null,null,null,null,null,"Annual",{"$f":"AVERAGE(L7:L18)","v":{"$error":"#DIV/0!"}},{"$f":"MAX(M7:M18)","v":0},{"$f":"AVERAGE(N7:N18)","v":{"$error":"#DIV/0!"}},{"$f":"MAX(O7:O18)","v":0}]
[]
[null,null,null,null,null,null,null,null,null,{"$f":"+A5","v":2025},"mg/Nm3","Monthly mean of half-hourly averages","Highest half- hourly average","Monthly mean of  daily averages","Highest daily average"]
[null,null,null,null,null,null,null,null,null,"A2","Jan"]
[null,null,null,null,null,null,null,null,null,null,"Feb"]
[null,null,null,null,null,null,null,null,null,null,"Mar"]
[null,null,null,null,null,null,null,null,null,null,"Apr"]
[null,null,null,null,null,null,null,null,null,null,"May"]
[null,null,null,null,null,null,null,null,null,null,"Jun"]
[null,null,null,null,null,null,null,null,null,null,"Jul"]
[null,null,null,null,null,null,null,null,null,null,"Aug"]
[null,null,null,null,null,null,null,null,null,null,"Sep"]
[null,null,null,null,null,null,null,null,null,null,"Oct"]
[null,null,null,null,null,null,null,null,null,null,"Nov"]
[null,null,null,null,null,null,null,null,null,null,"Dec"]
[null,null,null,null,null,null,null,null,null,null,"Annual",{"$f":"AVERAGE(L22:L33)","v":{"$error":"#DIV/0!"}},{"$f":"MAX(M22:M33)","v":0},{"$f":"AVERAGE(N22:N33)","v":{"$error":"#DIV/0!"}},{"$f":"MAX(O22:O33)","v":0}]
[]
[null,null,null,null,null,null,null,null,null,{"$f":"+A5","v":2025},"mg/Nm3","Monthly mean of half-hourly averages","Highest half- hourly average","Monthly mean of  daily averages","Highest daily average"]
[null,null,null,null,null,null,null,null,null,"A3","Jan"]
[null,null,null,null,null,null,null,null,null,null,"Feb"]
[null,null,null,null,null,null,null,null,null,null,"Mar"]
[null,null,null,null,null,null,null,null,null,null,"Apr"]
[null,null,null,null,null,null,null,null,null,null,"May"]
[null,null,null,null,null,null,null,null,null,null,"Jun"]
[null,null,null,null,null,null,null,null,null,null,"Jul"]
[null,null,null,null,null,null,null,null,null,null,"Aug"]
[null,null,null,null,null,null,null,null,null,null,"Sep"]
[null,null,null,null,null,null,null,null,null,null,"Oct"]
[null,null,null,null,null,null,null,null,null,null,"Nov"]
["Comments :",null,null,null,null,null,null,null,null,null,"Dec"]
["An indicated ELV value of zero in the table above means that no ammonia limit is/was set in the permit.  ",null,null,null,null,null,null,null,null,null,"Annual",{"$f":"AVERAGE(L37:L48)","v":{"$error":"#DIV/0!"}},{"$f":"MAX(M37:M48)","v":0},{"$f":"AVERAGE(N37:N48)","v":{"$error":"#DIV/0!"}},{"$f":"MAX(O37:O48)","v":0}]
[]
[null,null,null,null,null,null,null,null,null,{"$f":"+A5","v":2025},"mg/Nm3","Monthly mean of half-hourly averages","Highest half- hourly average","Monthly mean of  daily averages","Highest daily average"]
[null,null,null,null,null,null,null,null,null,"A4","Jan"]
[null,null,null,null,null,null,null,null,null,null,"Feb"]
[null,null,null,null,null,null,null,null,null,null,"Mar"]
[null,null,null,null,null,null,null,null,null,null,"Apr"]
[null,null,null,null,null,null,null,null,null,null,"May"]
[null,null,null,null,null,null,null,null,null,null,"Jun"]
[null,null,null,null,null,null,null,null,null,null,"Jul"]
[null,null,null,null,null,null,null,null,null,null,"Aug"]
[null,null,null,null,null,null,null,null,null,null,"Sep"]
[null,null,null,null,null,null,null,null,null,null,"Oct"]
[null,null,null,null,null,null,null,null,null,null,"Nov"]
[null,null,null,null,null,null,null,null,null,null,"Dec"]
[null,null,null,null,null,null,null,null,null,null,"Annual",{"$f":"AVERAGE(L52:L63)","v":{"$error":"#DIV/0!"}},{"$f":"MAX(M52:M63)","v":0},{"$f":"AVERAGE(N52:N63)","v":{"$error":"#DIV/0!"}},{"$f":"MAX(O52:O63)","v":0}]
[]
[null,null,null,null,null,null,null,null,null,{"$f":"+A5","v":2025},"mg/Nm3","Monthly mean of half-hourly averages","Highest half- hourly average","Monthly mean of  daily averages","Highest daily average"]
[null,null,null,null,null,null,null,null,null,"A5","Jan"]
[null,null,null,null,null,null,null,null,null,null,"Feb"]
[null,null,null,null,null,null,null,null,null,null,"Mar"]
[null,null,null,null,null,null,null,null,null,null,"Apr"]
[null,null,null,null,null,null,null,null,null,null,"May"]
[null,null,null,null,null,null,null,null,null,null,"Jun"]
[null,null,null,null,null,null,null,null,null,null,"Jul"]
[null,null,null,null,null,null,null,null,null,null,"Aug"]
[null,null,null,null,null,null,null,null,null,null,"Sep"]
[null,null,null,null,null,null,null,null,null,null,"Oct"]
[null,null,null,null,null,null,null,null,null,null,"Nov"]
[null,null,null,null,null,null,null,null,null,null,"Dec"]
[null,null,null,null,null,null,null,null,null,null,"Annual",{"$f":"AVERAGE(L67:L78)","v":{"$error":"#DIV/0!"}},{"$f":"MAX(M67:M78)","v":0},{"$f":"AVERAGE(N67:N78)","v":{"$error":"#DIV/0!"}},{"$f":"MAX(O67:O78)","v":0}]